{"text_format":"1","workbook":"xlsx","n_sheets":8,"sheets":["Spielberichtsbogen","Einzelergebnisse","MANNSCHAFTEN+SPIELER","Daten","Etiketten Druck","TV-Beamer","Upload","übertrag"],"not_rendered":{"charts":0,"images":2,"macros":1,"external_links":1,"defined_names":99,"comments":1,"pivot_tables":0},"unopened":[],"bounds":{"document_bytes":16777216,"sheet_cells":100000,"rows_first":2000,"rows_last":500,"rows_between":2000,"halvings":0,"cell_chars":16384,"cell_head_chars":4096},"cells_cut":0,"cells_raw":0,"read":"whole","date_system":"1900"}

{"sheet":"Spielberichtsbogen","index":0,"n_rows":68,"n_cols":27,"rows_kept":68,"cut":false,"hidden":false,"merged":[[1,15,3,26],[9,22,9,25],[6,16,6,18],[9,14,9,15],[66,1,66,26],[13,2,13,4],[17,2,18,4],[23,2,23,4],[27,2,27,4],[9,16,9,18],[25,8,25,9],[32,8,32,9],[31,8,31,9],[30,8,30,9],[28,11,32,11],[30,16,30,18],[28,8,28,9],[29,8,29,9],[28,2,29,4],[20,2,20,4],[45,2,46,4],[49,2,50,4],[37,2,37,4],[48,2,48,4],[57,19,57,22],[68,3,68,6],[67,20,67,26],[67,3,67,6],[67,13,67,17],[68,7,68,11],[23,16,23,18],[24,8,24,9],[30,2,30,4],[35,2,36,4],[34,16,34,18],[34,8,34,9],[44,2,44,4],[31,16,32,18],[41,8,41,9],[36,8,36,9],[47,8,47,9],[31,2,32,4],[41,2,41,4],[42,2,43,4],[38,2,39,4],[34,2,34,4],[57,5,57,9],[47,22,47,23],[48,22,48,23],[45,8,45,9],[46,8,46,9],[42,11,46,11],[37,8,37,9],[38,8,38,9],[68,12,68,16],[68,20,68,26],[55,22,55,23],[54,22,54,23],[35,25,39,25],[42,25,46,25],[44,16,44,18],[35,16,36,18],[42,16,43,18],[45,16,46,18],[38,16,39,18],[38,22,38,23],[36,22,36,23],[41,22,41,23],[43,22,43,23],[42,22,42,23],[46,22,46,23],[44,22,44,23],[45,22,45,23],[52,2,53,4],[52,16,53,18],[52,8,52,9],[51,8,51,9],[53,8,53,9],[51,2,51,4],[48,16,48,18],[49,25,53,25],[49,11,53,11],[49,16,50,18],[52,22,52,23],[53,22,53,23],[51,22,51,23],[50,22,50,23],[49,22,49,23],[51,16,51,18],[41,16,41,18],[39,22,39,23],[40,22,40,23],[37,16,37,18],[28,25,32,25],[21,16,22,18],[28,16,29,18],[27,16,27,18],[24,16,25,18],[22,22,22,23],[30,22,30,23],[29,22,29,23],[27,22,27,23],[31,22,31,23],[21,25,25,25],[16,2,16,4],[19,8,19,9],[21,8,21,9],[22,8,22,9],[16,8,16,9],[14,25,18,25],[14,2,15,4],[14,22,14,23],[23,8,23,9],[21,2,22,4],[24,2,25,4],[35,22,35,23],[24,22,24,23],[35,8,35,9],[34,22,34,23],[18,22,18,23],[19,22,19,23],[28,22,28,23],[33,8,33,9],[32,22,32,23],[33,22,33,23],[20,8,20,9],[21,11,25,11],[27,8,27,9],[26,8,26,9],[35,11,39,11],[37,22,37,23],[4,16,5,25],[3,3,4,10],[16,22,16,23],[16,16,16,18],[14,16,15,18],[14,11,18,11],[14,8,14,9],[15,8,15,9],[6,21,6,22],[6,23,6,24],[6,19,6,20],[13,22,13,23],[17,22,17,23],[11,18,11,25],[17,16,18,18],[17,8,17,9],[11,4,11,11],[13,8,13,9],[65,2,65,26],[64,22,64,26],[64,18,64,20],[64,4,64,6],[64,9,64,13],[6,25,6,26],[13,16,13,18],[20,16,20,18],[15,22,15,23],[21,22,21,23],[18,8,18,9],[20,22,20,23],[25,22,25,23],[26,22,26,23],[23,22,23,23],[54,8,54,9],[39,8,39,9],[40,8,40,9],[43,8,43,9],[48,8,48,9],[49,8,49,9],[50,8,50,9],[42,8,42,9],[44,8,44,9]]}
[]
[null,null,null,null,null,null,null,null,null,null,null,null,null,null,null,"Spielbericht"]
[]
[]
[null,null,null,null,null,null,null,null,null,null,null,null,null,null,null,null,{"$f":"Daten!E5","v":"!!! Liga eintragen !!!"}]
[null,null,null,null,null,"Senioren",null,null,null,null,{"$f":"IF(übertrag!Q11=TRUE,\"X\",\"\")","v":""},null,null,null,"Liga/Klasse"]
[null,"Clubspiel",null,{"$f":"IF(übertrag!Q2=TRUE,\"X\",\"\")","v":""},null,"Frauen",null,null,null,null,{"$f":"IF(übertrag!Q6=TRUE,\"X\",\"\")","v":""},null,null,null,"Datum",null,"2016-09-20",null,null,"Spieltag",null,{"$f":"IF(übertrag!AE25=23,\"\",übertrag!AE25)","v":"1"},null,{"$f":"IF(Daten!E11=0,\"\",\"Sp-Nr\")","v":""},null,{"$f":"IF(Daten!E11=0,\"\",Daten!E11)","v":""}]
[null,"Pokalspiel",null,{"$f":"IF(übertrag!Q3=TRUE,\"X\",\"\")","v":""},null,"Männer",null,null,null,null,{"$f":"IF(übertrag!Q5=TRUE,\"X\",\"\")","v":""},null,null,null,"Bahnanlage",null,{"$f":"Daten!E7","v":"!!! Bahnanlage eintragen !!!"}]
[null,"Länderspiel",null,{"$f":"IF(übertrag!Q4=TRUE,\"X\",\"\")","v":""},null,"U 23",null,null,null,null,{"$f":"IF(übertrag!Q7=TRUE,\"X\",\"\")","v":""},null,null,null,"Ort",null,{"$f":"Daten!E9","v":"!!! Ort eintragen !!!"}]
[null,null,null,null,null,"U 18",null,null,null,null,{"$f":"IF(übertrag!Q8=TRUE,\"X\",\"\")","v":""},null,null,null,"Spielbeginn",null,null,null,null,null,null,"Spielende"]
[]
[null,"Heimmannschaft",null,null,{"$f":"'MANNSCHAFTEN+SPIELER'!$O$3","v":"Heimmannschaft"},null,null,null,null,null,null,null,null,null,null,"Gastmannschaft",null,null,{"$f":"übertrag!$U$100","v":"Gastmannschaft 1"}]
[]
[null,"Pa.-Nr./Mo.Ja","Name, Vorname",null,null,"Volle","Abr","Fe","Ges",null,"SaP","MaP",null,null,null,"Pa.-Nr./Mo.Ja","Name, Vorname",null,null,"Volle","Abr","Fe","Ges",null,"SaP","MaP"]
[null,{"$f":"übertrag!O16","v":0},{"$f":"übertrag!Z2","v":0},null,null,{"$f":"IF(Einzelergebnisse!C5=0,\"\",Einzelergebnisse!C5)","v":""},{"$f":"IF(Einzelergebnisse!D5=0,\"\",Einzelergebnisse!D5)","v":""},{"$f":"IF(Einzelergebnisse!A5=0,\"\",Einzelergebnisse!E5)","v":""},{"$f":"IF(Einzelergebnisse!F5=0,\"\",Einzelergebnisse!F5)","v":""},null,{"$f":"IF(Einzelergebnisse!$A$5=0,\"\",IF(I15=\"\",0,IF(I15=W15,0.5,IF(I15>W15,1,IF(AND(I15>0,W15=\"\"),1,0)))))","v":""},{"$f":"IF(Einzelergebnisse!A5=0,\"\",IF(I15=\"\",0,IF(K20&I20=Y20&W20,0.5,IF(K20&I20>Y20&W20,1,IF(K20>Y20,1,0)))))","v":""},null,null,null,{"$f":"IF(übertrag!O2=\"\",übertrag!P2,übertrag!O2)","v":0},{"$f":"IF(übertrag!K2=\"\",übertrag!L2,übertrag!K2)","v":0},null,null,{"$f":"IF(Einzelergebnisse!J5=0,\"\",Einzelergebnisse!J5)","v":""},{"$f":"IF(Einzelergebnisse!K5=0,\"\",Einzelergebnisse!K5)","v":""},{"$f":"IF(Einzelergebnisse!H5=0,\"\",Einzelergebnisse!L5)","v":""},{"$f":"IF(Einzelergebnisse!M5=0,\"\",Einzelergebnisse!M5)","v":""},null,{"$f":"IF(Einzelergebnisse!$H$5=0,\"\",IF(W15=\"\",0,IF(W15=I15,0.5,IF(W15>I15,1,IF(AND(W15>0,I15=\"\"),1,0)))))","v":""},{"$f":"IF(Einzelergebnisse!H5=0,\"\",IF(W15=\"\",0,IF(Y20&W20=K20&I20,0.5,IF(Y20&W20>K20&I20,1,IF(Y20>K20,1,0)))))","v":""}]
[null,{"$f":"übertrag!M16","v":"00:00:00"},null,null,null,{"$f":"IF(Einzelergebnisse!C6=0,\"\",Einzelergebnisse!C6)","v":""},{"$f":"IF(Einzelergebnisse!D6=0,\"\",Einzelergebnisse!D6)","v":""},{"$f":"IF(Einzelergebnisse!A5=0,\"\",Einzelergebnisse!E6)","v":""},{"$f":"IF(Einzelergebnisse!F6=0,\"\",Einzelergebnisse!F6)","v":""},null,{"$f":"IF(Einzelergebnisse!$A$5=0,\"\",IF(I16=\"\",0,IF(I16=W16,0.5,IF(I16>W16,1,IF(AND(I16>0,W16=\"\"),1,0)))))","v":""},null,null,null,null,{"$f":"IF(übertrag!M2=\"\",übertrag!N2,übertrag!M2)","v":"00:00:00"},null,null,null,{"$f":"IF(Einzelergebnisse!J6=0,\"\",Einzelergebnisse!J6)","v":""},{"$f":"IF(Einzelergebnisse!K6=0,\"\",Einzelergebnisse!K6)","v":""},{"$f":"IF(Einzelergebnisse!H5=0,\"\",Einzelergebnisse!L6)","v":""},{"$f":"IF(Einzelergebnisse!M6=0,\"\",Einzelergebnisse!M6)","v":""},null,{"$f":"IF(Einzelergebnisse!$H$5=0,\"\",IF(W16=\"\",0,IF(W16=I16,0.5,IF(W16>I16,1,IF(AND(W16>0,I16=\"\"),1,0)))))","v":""}]
[null,"Pa.-Nr./Mo.Ja","Awsp. Name, Vorname",null,null,null,null,null,null,null,null,null,null,null,null,"Pa.-Nr./Mo.Ja","Awsp. Name, Vorname"]
[null,{"$f":"übertrag!O23","v":0},{"$f":"übertrag!Z9","v":0},null,null,{"$f":"IF(Einzelergebnisse!C7=0,\"\",Einzelergebnisse!C7)","v":""},{"$f":"IF(Einzelergebnisse!D7=0,\"\",Einzelergebnisse!D7)","v":""},{"$f":"IF(Einzelergebnisse!A5=0,\"\",Einzelergebnisse!E7)","v":""},{"$f":"IF(Einzelergebnisse!F7=0,\"\",Einzelergebnisse!F7)","v":""},null,{"$f":"IF(Einzelergebnisse!$A$5=0,\"\",IF(I18=\"\",0,IF(I18=W18,0.5,IF(I18>W18,1,IF(AND(I18>0,W18=\"\"),1,0)))))","v":""},null,null,null,null,{"$f":"IF(übertrag!O8=\"\",übertrag!P8,übertrag!O8)","v":0},{"$f":"IF(übertrag!K8=\"\",übertrag!L8,übertrag!K8)","v":0},null,null,{"$f":"IF(Einzelergebnisse!J7=0,\"\",Einzelergebnisse!J7)","v":""},{"$f":"IF(Einzelergebnisse!K7=0,\"\",Einzelergebnisse!K7)","v":""},{"$f":"IF(Einzelergebnisse!H5=0,\"\",Einzelergebnisse!L7)","v":""},{"$f":"IF(Einzelergebnisse!M7=0,\"\",Einzelergebnisse!M7)","v":""},null,{"$f":"IF(Einzelergebnisse!$H$5=0,\"\",IF(W18=\"\",0,IF(W18=I18,0.5,IF(W18>I18,1,IF(AND(W18>0,I18=\"\"),1,0)))))","v":""}]
[null,{"$f":"übertrag!M23","v":"00:00:00"},null,null,null,{"$f":"IF(Einzelergebnisse!C8=0,\"\",Einzelergebnisse!C8)","v":""},{"$f":"IF(Einzelergebnisse!D8=0,\"\",Einzelergebnisse!D8)","v":""},{"$f":"IF(Einzelergebnisse!A5=0,\"\",Einzelergebnisse!E8)","v":""},{"$f":"IF(Einzelergebnisse!F8=0,\"\",Einzelergebnisse!F8)","v":""},null,{"$f":"IF(Einzelergebnisse!$A$5=0,\"\",IF(I19=\"\",0,IF(I19=W19,0.5,IF(I19>W19,1,IF(AND(I19>0,W19=\"\"),1,0)))))","v":""},null,null,null,null,{"$f":"IF(übertrag!M8=\"\",übertrag!N8,übertrag!M8)","v":"00:00:00"},null,null,null,{"$f":"IF(Einzelergebnisse!J8=0,\"\",Einzelergebnisse!J8)","v":""},{"$f":"IF(Einzelergebnisse!K8=0,\"\",Einzelergebnisse!K8)","v":""},{"$f":"IF(Einzelergebnisse!H5=0,\"\",Einzelergebnisse!L8)","v":""},{"$f":"IF(Einzelergebnisse!M8=0,\"\",Einzelergebnisse!M8)","v":""},null,{"$f":"IF(Einzelergebnisse!$H$5=0,\"\",IF(W19=\"\",0,IF(W19=I19,0.5,IF(W19>I19,1,IF(AND(W19>0,I19=\"\"),1,0)))))","v":""}]
[null,null,null,null,null,{"$f":"IF(Einzelergebnisse!A5=0,\"\",SUM(F15:F19))","v":""},{"$f":"IF(Einzelergebnisse!A5=0,\"\",SUM(G15:G19))","v":""},{"$f":"IF(Einzelergebnisse!A5=0,\"\",SUM(H15:H19))","v":""},{"$f":"IF(Einzelergebnisse!A5=0,\"\",SUM(I15:I19))","v":""},null,{"$f":"IF(Einzelergebnisse!A5=0,\"\",SUM(K15:K16,K18:K19))","v":""},null,null,null,null,null,null,null,null,{"$f":"IF(Einzelergebnisse!H5=0,\"\",SUM(T15,T16,T18,T19))","v":""},{"$f":"IF(Einzelergebnisse!H5=0,\"\",SUM(U15,U16,U18,U19))","v":""},{"$f":"IF(Einzelergebnisse!H5=0,\"\",SUM(V15,V16,V18,V19))","v":""},{"$f":"IF(Einzelergebnisse!H5=0,\"\",SUM(W15,W16,W18,W19))","v":""},null,{"$f":"IF(Einzelergebnisse!H5=0,\"\",SUM(Y15:Y16,Y18:Y19))","v":""}]
[null,"Pa.-Nr./Mo.Ja","Name, Vorname",null,null,"Volle","Abr","Fe","Ges",null,"SaP","MaP",null,null,null,"Pa.-Nr./Mo.Ja","Name, Vorname",null,null,"Volle","Abr","Fe","Ges",null,"SaP","MaP"]
[null,{"$f":"übertrag!O17","v":0},{"$f":"übertrag!Z3","v":0},null,null,{"$f":"IF(Einzelergebnisse!C13=0,\"\",Einzelergebnisse!C13)","v":""},{"$f":"IF(Einzelergebnisse!D13=0,\"\",Einzelergebnisse!D13)","v":""},{"$f":"IF(Einzelergebnisse!A13=0,\"\",Einzelergebnisse!E13)","v":""},{"$f":"IF(Einzelergebnisse!F13=0,\"\",Einzelergebnisse!F13)","v":""},null,{"$f":"IF(Einzelergebnisse!$A$13=0,\"\",IF(I22=\"\",0,IF(I22=W22,0.5,IF(I22>W22,1,IF(AND(I22>0,W22=\"\"),1,0)))))","v":""},{"$f":"IF(Einzelergebnisse!A13=0,\"\",IF(I22=\"\",0,IF(K27&I27=Y27&W27,0.5,IF(K27&I27>Y27&W27,1,IF(K27>Y27,1,0)))))","v":""},null,null,null,{"$f":"IF(übertrag!O3=\"\",übertrag!P3,übertrag!O3)","v":0},{"$f":"IF(übertrag!K3=\"\",übertrag!L3,übertrag!K3)","v":0},null,null,{"$f":"IF(Einzelergebnisse!J13=0,\"\",Einzelergebnisse!J13)","v":""},{"$f":"IF(Einzelergebnisse!K13=0,\"\",Einzelergebnisse!K13)","v":""},{"$f":"IF(Einzelergebnisse!H13=0,\"\",Einzelergebnisse!L13)","v":""},{"$f":"IF(Einzelergebnisse!M13=0,\"\",Einzelergebnisse!M13)","v":""},null,{"$f":"IF(Einzelergebnisse!$H$13=0,\"\",IF(W22=\"\",0,IF(W22=I22,0.5,IF(W22>I22,1,IF(AND(W22>0,I22=\"\"),1,0)))))","v":""},{"$f":"IF(Einzelergebnisse!H13=0,\"\",IF(W22=\"\",0,IF(Y27&W27=K27&I27,0.5,IF(Y27&W27>K27&I27,1,IF(Y27>K27,1,0)))))","v":""}]
[null,{"$f":"übertrag!M17","v":"00:00:00"},null,null,null,{"$f":"IF(Einzelergebnisse!C14=0,\"\",Einzelergebnisse!C14)","v":""},{"$f":"IF(Einzelergebnisse!D14=0,\"\",Einzelergebnisse!D14)","v":""},{"$f":"IF(Einzelergebnisse!A13=0,\"\",Einzelergebnisse!E14)","v":""},{"$f":"IF(Einzelergebnisse!F14=0,\"\",Einzelergebnisse!F14)","v":""},null,{"$f":"IF(Einzelergebnisse!$A$13=0,\"\",IF(I23=\"\",0,IF(I23=W23,0.5,IF(I23>W23,1,IF(AND(I23>0,W23=\"\"),1,0)))))","v":""},null,null,null,null,{"$f":"IF(übertrag!M3=\"\",übertrag!N3,übertrag!M3)","v":"00:00:00"},null,null,null,{"$f":"IF(Einzelergebnisse!J14=0,\"\",Einzelergebnisse!J14)","v":""},{"$f":"IF(Einzelergebnisse!K14=0,\"\",Einzelergebnisse!K14)","v":""},{"$f":"IF(Einzelergebnisse!H13=0,\"\",Einzelergebnisse!L14)","v":""},{"$f":"IF(Einzelergebnisse!M14=0,\"\",Einzelergebnisse!M14)","v":""},null,{"$f":"IF(Einzelergebnisse!$H$13=0,\"\",IF(W23=\"\",0,IF(W23=I23,0.5,IF(W23>I23,1,IF(AND(W23>0,I23=\"\"),1,0)))))","v":""}]
[null,"Pa.-Nr./Mo.Ja","Awsp. Name, Vorname",null,null,null,null,null,null,null,null,null,null,null,null,"Pa.-Nr./Mo.Ja","Awsp. Name, Vorname"]
[null,{"$f":"übertrag!O24","v":0},{"$f":"übertrag!Z10","v":0},null,null,{"$f":"IF(Einzelergebnisse!C15=0,\"\",Einzelergebnisse!C15)","v":""},{"$f":"IF(Einzelergebnisse!D15=0,\"\",Einzelergebnisse!D15)","v":""},{"$f":"IF(Einzelergebnisse!A13=0,\"\",Einzelergebnisse!E15)","v":""},{"$f":"IF(Einzelergebnisse!F15=0,\"\",Einzelergebnisse!F15)","v":""},null,{"$f":"IF(Einzelergebnisse!$A$13=0,\"\",IF(I25=\"\",0,IF(I25=W25,0.5,IF(I25>W25,1,IF(AND(I25>0,W25=\"\"),1,0)))))","v":""},null,null,null,null,{"$f":"IF(übertrag!O9=\"\",übertrag!P9,übertrag!O9)","v":0},{"$f":"IF(übertrag!K9=\"\",übertrag!L9,übertrag!K9)","v":0},null,null,{"$f":"IF(Einzelergebnisse!J15=0,\"\",Einzelergebnisse!J15)","v":""},{"$f":"IF(Einzelergebnisse!K15=0,\"\",Einzelergebnisse!K15)","v":""},{"$f":"IF(Einzelergebnisse!H13=0,\"\",Einzelergebnisse!L15)","v":""},{"$f":"IF(Einzelergebnisse!M15=0,\"\",Einzelergebnisse!M15)","v":""},null,{"$f":"IF(Einzelergebnisse!$H$13=0,\"\",IF(W25=\"\",0,IF(W25=I25,0.5,IF(W25>I25,1,IF(AND(W25>0,I25=\"\"),1,0)))))","v":""}]
[null,{"$f":"übertrag!M24","v":"00:00:00"},null,null,null,{"$f":"IF(Einzelergebnisse!C16=0,\"\",Einzelergebnisse!C16)","v":""},{"$f":"IF(Einzelergebnisse!D16=0,\"\",Einzelergebnisse!D16)","v":""},{"$f":"IF(Einzelergebnisse!A13=0,\"\",Einzelergebnisse!E16)","v":""},{"$f":"IF(Einzelergebnisse!F16=0,\"\",Einzelergebnisse!F16)","v":""},null,{"$f":"IF(Einzelergebnisse!$A$13=0,\"\",IF(I26=\"\",0,IF(I26=W26,0.5,IF(I26>W26,1,IF(AND(I26>0,W26=\"\"),1,0)))))","v":""},null,null,null,null,{"$f":"IF(übertrag!M9=\"\",übertrag!N9,übertrag!M9)","v":"00:00:00"},null,null,null,{"$f":"IF(Einzelergebnisse!J16=0,\"\",Einzelergebnisse!J16)","v":""},{"$f":"IF(Einzelergebnisse!K16=0,\"\",Einzelergebnisse!K16)","v":""},{"$f":"IF(Einzelergebnisse!H13=0,\"\",Einzelergebnisse!L16)","v":""},{"$f":"IF(Einzelergebnisse!M16=0,\"\",Einzelergebnisse!M16)","v":""},null,{"$f":"IF(Einzelergebnisse!$H$13=0,\"\",IF(W26=\"\",0,IF(W26=I26,0.5,IF(W26>I26,1,IF(AND(W26>0,I26=\"\"),1,0)))))","v":""}]
[null,null,null,null,null,{"$f":"IF(Einzelergebnisse!A13=0,\"\",SUM(F22:F26))","v":""},{"$f":"IF(Einzelergebnisse!A13=0,\"\",SUM(G22:G26))","v":""},{"$f":"IF(Einzelergebnisse!A13=0,\"\",SUM(H22:H26))","v":""},{"$f":"IF(Einzelergebnisse!A13=0,\"\",SUM(I22:I26))","v":""},null,{"$f":"IF(Einzelergebnisse!A13=0,\"\",SUM(K22:K23,K25:K26))","v":""},null,null,null,null,null,null,null,null,{"$f":"IF(Einzelergebnisse!H13=0,\"\",SUM(T22,T23,T25,T26))","v":""},{"$f":"IF(Einzelergebnisse!H13=0,\"\",SUM(U22,U23,U25,U26))","v":""},{"$f":"IF(Einzelergebnisse!H13=0,\"\",SUM(V22,V23,V25,V26))","v":""},{"$f":"IF(Einzelergebnisse!H13=0,\"\",SUM(W22,W23,W25,W26))","v":""},null,{"$f":"IF(Einzelergebnisse!H13=0,\"\",SUM(Y22:Y23,Y25:Y26))","v":""}]
[null,"Pa.-Nr./Mo.Ja","Name, Vorname",null,null,"Volle","Abr","Fe","Ges",null,"SaP","MaP",null,null,null,"Pa.-Nr./Mo.Ja","Name, Vorname",null,null,"Volle","Abr","Fe","Ges",null,"SaP","MaP"]
[null,{"$f":"übertrag!O18","v":0},{"$f":"übertrag!Z4","v":0},null,null,{"$f":"IF(Einzelergebnisse!C21=0,\"\",Einzelergebnisse!C21)","v":""},{"$f":"IF(Einzelergebnisse!D21=0,\"\",Einzelergebnisse!D21)","v":""},{"$f":"IF(Einzelergebnisse!A21=0,\"\",Einzelergebnisse!E21)","v":""},{"$f":"IF(Einzelergebnisse!F21=0,\"\",Einzelergebnisse!F21)","v":""},null,{"$f":"IF(Einzelergebnisse!$A$21=0,\"\",IF(I29=\"\",0,IF(I29=W29,0.5,IF(I29>W29,1,IF(AND(I29>0,W29=\"\"),1,0)))))","v":""},{"$f":"IF(Einzelergebnisse!A21=0,\"\",IF(I29=\"\",0,IF(K34&I34=Y34&W34,0.5,IF(K34&I34>Y34&W34,1,IF(K34>Y34,1,0)))))","v":""},null,null,null,{"$f":"IF(übertrag!O4=\"\",übertrag!P4,übertrag!O4)","v":0},{"$f":"IF(übertrag!K4=\"\",übertrag!L4,übertrag!K4)","v":0},null,null,{"$f":"IF(Einzelergebnisse!J21=0,\"\",Einzelergebnisse!J21)","v":""},{"$f":"IF(Einzelergebnisse!K21=0,\"\",Einzelergebnisse!K21)","v":""},{"$f":"IF(Einzelergebnisse!H21=0,\"\",Einzelergebnisse!L21)","v":""},{"$f":"IF(Einzelergebnisse!M21=0,\"\",Einzelergebnisse!M21)","v":""},null,{"$f":"IF(Einzelergebnisse!$H$21=0,\"\",IF(W29=\"\",0,IF(W29=I29,0.5,IF(W29>I29,1,IF(AND(W29>0,I29=\"\"),1,0)))))","v":""},{"$f":"IF(Einzelergebnisse!H21=0,\"\",IF(W29=\"\",0,IF(Y34&W34=K34&I34,0.5,IF(Y34&W34>K34&I34,1,IF(Y34>K34,1,0)))))","v":""}]
[null,{"$f":"übertrag!M18","v":"00:00:00"},null,null,null,{"$f":"IF(Einzelergebnisse!C22=0,\"\",Einzelergebnisse!C22)","v":""},{"$f":"IF(Einzelergebnisse!D22=0,\"\",Einzelergebnisse!D22)","v":""},{"$f":"IF(Einzelergebnisse!A21=0,\"\",Einzelergebnisse!E22)","v":""},{"$f":"IF(Einzelergebnisse!F22=0,\"\",Einzelergebnisse!F22)","v":""},null,{"$f":"IF(Einzelergebnisse!$A$21=0,\"\",IF(I30=\"\",0,IF(I30=W30,0.5,IF(I30>W30,1,IF(AND(I30>0,W30=\"\"),1,0)))))","v":""},null,null,null,null,{"$f":"IF(übertrag!M4=\"\",übertrag!N4,übertrag!M4)","v":"00:00:00"},null,null,null,{"$f":"IF(Einzelergebnisse!J22=0,\"\",Einzelergebnisse!J22)","v":""},{"$f":"IF(Einzelergebnisse!K22=0,\"\",Einzelergebnisse!K22)","v":""},{"$f":"IF(Einzelergebnisse!H21=0,\"\",Einzelergebnisse!L22)","v":""},{"$f":"IF(Einzelergebnisse!M22=0,\"\",Einzelergebnisse!M22)","v":""},null,{"$f":"IF(Einzelergebnisse!$H$21=0,\"\",IF(W30=\"\",0,IF(W30=I30,0.5,IF(W30>I30,1,IF(AND(W30>0,I30=\"\"),1,0)))))","v":""}]
[null,"Pa.-Nr./Mo.Ja","Awsp. Name, Vorname",null,null,null,null,null,null,null,null,null,null,null,null,"Pa.-Nr./Mo.Ja","Awsp. Name, Vorname"]
[null,{"$f":"übertrag!O25","v":0},{"$f":"übertrag!Z11","v":0},null,null,{"$f":"IF(Einzelergebnisse!C23=0,\"\",Einzelergebnisse!C23)","v":""},{"$f":"IF(Einzelergebnisse!D23=0,\"\",Einzelergebnisse!D23)","v":""},{"$f":"IF(Einzelergebnisse!A21=0,\"\",Einzelergebnisse!E23)","v":""},{"$f":"IF(Einzelergebnisse!F23=0,\"\",Einzelergebnisse!F23)","v":""},null,{"$f":"IF(Einzelergebnisse!$A$21=0,\"\",IF(I32=\"\",0,IF(I32=W32,0.5,IF(I32>W32,1,IF(AND(I32>0,W32=\"\"),1,0)))))","v":""},null,null,null,null,{"$f":"IF(übertrag!O10=\"\",übertrag!P10,übertrag!O10)","v":0},{"$f":"IF(übertrag!K10=\"\",übertrag!L10,übertrag!K10)","v":0},null,null,{"$f":"IF(Einzelergebnisse!J23=0,\"\",Einzelergebnisse!J23)","v":""},{"$f":"IF(Einzelergebnisse!K23=0,\"\",Einzelergebnisse!K23)","v":""},{"$f":"IF(Einzelergebnisse!H21=0,\"\",Einzelergebnisse!L23)","v":""},{"$f":"IF(Einzelergebnisse!M23=0,\"\",Einzelergebnisse!M23)","v":""},null,{"$f":"IF(Einzelergebnisse!$H$21=0,\"\",IF(W32=\"\",0,IF(W32=I32,0.5,IF(W32>I32,1,IF(AND(W32>0,I32=\"\"),1,0)))))","v":""}]
[null,{"$f":"übertrag!M25","v":"00:00:00"},null,null,null,{"$f":"IF(Einzelergebnisse!C24=0,\"\",Einzelergebnisse!C24)","v":""},{"$f":"IF(Einzelergebnisse!D24=0,\"\",Einzelergebnisse!D24)","v":""},{"$f":"IF(Einzelergebnisse!A21=0,\"\",Einzelergebnisse!E24)","v":""},{"$f":"IF(Einzelergebnisse!F24=0,\"\",Einzelergebnisse!F24)","v":""},null,{"$f":"IF(Einzelergebnisse!$A$21=0,\"\",IF(I33=\"\",0,IF(I33=W33,0.5,IF(I33>W33,1,IF(AND(I33>0,W33=\"\"),1,0)))))","v":""},null,null,null,null,{"$f":"IF(übertrag!M10=\"\",übertrag!N10,übertrag!M10)","v":"00:00:00"},null,null,null,{"$f":"IF(Einzelergebnisse!J24=0,\"\",Einzelergebnisse!J24)","v":""},{"$f":"IF(Einzelergebnisse!K24=0,\"\",Einzelergebnisse!K24)","v":""},{"$f":"IF(Einzelergebnisse!H21=0,\"\",Einzelergebnisse!L24)","v":""},{"$f":"IF(Einzelergebnisse!M24=0,\"\",Einzelergebnisse!M24)","v":""},null,{"$f":"IF(Einzelergebnisse!$H$21=0,\"\",IF(W33=\"\",0,IF(W33=I33,0.5,IF(W33>I33,1,IF(AND(W33>0,I33=\"\"),1,0)))))","v":""}]
[null,null,null,null,null,{"$f":"IF(Einzelergebnisse!A21=0,\"\",SUM(F29:F33))","v":""},{"$f":"IF(Einzelergebnisse!A21=0,\"\",SUM(G29:G33))","v":""},{"$f":"IF(Einzelergebnisse!A21=0,\"\",SUM(H29:H33))","v":""},{"$f":"IF(Einzelergebnisse!A21=0,\"\",SUM(I29:I33))","v":""},null,{"$f":"IF(Einzelergebnisse!A21=0,\"\",SUM(K29:K30,K32:K33))","v":""},null,null,null,null,null,null,null,null,{"$f":"IF(Einzelergebnisse!H21=0,\"\",SUM(T29,T30,T32,T33))","v":""},{"$f":"IF(Einzelergebnisse!H21=0,\"\",SUM(U29,U30,U32,U33))","v":""},{"$f":"IF(Einzelergebnisse!H21=0,\"\",SUM(V29,V30,V32,V33))","v":""},{"$f":"IF(Einzelergebnisse!H21=0,\"\",SUM(W29,W30,W32,W33))","v":""},null,{"$f":"IF(Einzelergebnisse!H21=0,\"\",SUM(Y29:Y30,Y32:Y33))","v":""}]
[null,"Pa.-Nr./Mo.Ja","Name, Vorname",null,null,"Volle","Abr","Fe","Ges",null,"SaP","MaP",null,null,null,"Pa.-Nr./Mo.Ja","Name, Vorname",null,null,"Volle","Abr","Fe","Ges",null,"SaP","MaP"]
[null,{"$f":"übertrag!O19","v":0},{"$f":"übertrag!Z5","v":0},null,null,{"$f":"IF(Einzelergebnisse!C29=0,\"\",Einzelergebnisse!C29)","v":""},{"$f":"IF(Einzelergebnisse!D29=0,\"\",Einzelergebnisse!D29)","v":""},{"$f":"IF(Einzelergebnisse!A29=0,\"\",Einzelergebnisse!E29)","v":""},{"$f":"IF(Einzelergebnisse!F29=0,\"\",Einzelergebnisse!F29)","v":""},null,{"$f":"IF(Einzelergebnisse!$A$29=0,\"\",IF(I36=\"\",0,IF(I36=W36,0.5,IF(I36>W36,1,IF(AND(I36>0,W36=\"\"),1,0)))))","v":""},{"$f":"IF(Einzelergebnisse!A29=0,\"\",IF(I36=\"\",0,IF(K41&I41=Y41&W41,0.5,IF(K41&I41>Y41&W41,1,IF(K41>Y41,1,0)))))","v":""},null,null,null,{"$f":"IF(übertrag!O5=\"\",übertrag!P5,übertrag!O5)","v":0},{"$f":"IF(übertrag!K5=\"\",übertrag!L5,übertrag!K5)","v":0},null,null,{"$f":"IF(Einzelergebnisse!J29=0,\"\",Einzelergebnisse!J29)","v":""},{"$f":"IF(Einzelergebnisse!K29=0,\"\",Einzelergebnisse!K29)","v":""},{"$f":"IF(Einzelergebnisse!H29=0,\"\",Einzelergebnisse!L29)","v":""},{"$f":"IF(Einzelergebnisse!M29=0,\"\",Einzelergebnisse!M29)","v":""},null,{"$f":"IF(Einzelergebnisse!$H$29=0,\"\",IF(W36=\"\",0,IF(W36=I36,0.5,IF(W36>I36,1,IF(AND(W36>0,I36=\"\"),1,0)))))","v":""},{"$f":"IF(Einzelergebnisse!H29=0,\"\",IF(W36=\"\",0,IF(Y41&W41=K41&I41,0.5,IF(Y41&W41>K41&I41,1,IF(Y41>K41,1,0)))))","v":""}]
[null,{"$f":"übertrag!M19","v":"00:00:00"},null,null,null,{"$f":"IF(Einzelergebnisse!C30=0,\"\",Einzelergebnisse!C30)","v":""},{"$f":"IF(Einzelergebnisse!D30=0,\"\",Einzelergebnisse!D30)","v":""},{"$f":"IF(Einzelergebnisse!A29=0,\"\",Einzelergebnisse!E30)","v":""},{"$f":"IF(Einzelergebnisse!F30=0,\"\",Einzelergebnisse!F30)","v":""},null,{"$f":"IF(Einzelergebnisse!$A$29=0,\"\",IF(I37=\"\",0,IF(I37=W37,0.5,IF(I37>W37,1,IF(AND(I37>0,W37=\"\"),1,0)))))","v":""},null,null,null,null,{"$f":"IF(übertrag!M5=\"\",übertrag!N5,übertrag!M5)","v":"00:00:00"},null,null,null,{"$f":"IF(Einzelergebnisse!J30=0,\"\",Einzelergebnisse!J30)","v":""},{"$f":"IF(Einzelergebnisse!K30=0,\"\",Einzelergebnisse!K30)","v":""},{"$f":"IF(Einzelergebnisse!H29=0,\"\",Einzelergebnisse!L30)","v":""},{"$f":"IF(Einzelergebnisse!M30=0,\"\",Einzelergebnisse!M30)","v":""},null,{"$f":"IF(Einzelergebnisse!$H$29=0,\"\",IF(W37=\"\",0,IF(W37=I37,0.5,IF(W37>I37,1,IF(AND(W37>0,I37=\"\"),1,0)))))","v":""}]
[null,"Pa.-Nr./Mo.Ja","Awsp. Name, Vorname",null,null,null,null,null,null,null,null,null,null,null,null,"Pa.-Nr./Mo.Ja","Awsp. Name, Vorname"]
[null,{"$f":"übertrag!O26","v":0},{"$f":"übertrag!Z12","v":0},null,null,{"$f":"IF(Einzelergebnisse!C31=0,\"\",Einzelergebnisse!C31)","v":""},{"$f":"IF(Einzelergebnisse!D31=0,\"\",Einzelergebnisse!D31)","v":""},{"$f":"IF(Einzelergebnisse!A29=0,\"\",Einzelergebnisse!E31)","v":""},{"$f":"IF(Einzelergebnisse!F31=0,\"\",Einzelergebnisse!F31)","v":""},null,{"$f":"IF(Einzelergebnisse!$A$29=0,\"\",IF(I39=\"\",0,IF(I39=W39,0.5,IF(I39>W39,1,IF(AND(I39>0,W39=\"\"),1,0)))))","v":""},null,null,null,null,{"$f":"IF(übertrag!O11=\"\",übertrag!P11,übertrag!O11)","v":0},{"$f":"IF(übertrag!K11=\"\",übertrag!L11,übertrag!K11)","v":0},null,null,{"$f":"IF(Einzelergebnisse!J31=0,\"\",Einzelergebnisse!J31)","v":""},{"$f":"IF(Einzelergebnisse!K31=0,\"\",Einzelergebnisse!K31)","v":""},{"$f":"IF(Einzelergebnisse!H29=0,\"\",Einzelergebnisse!L31)","v":""},{"$f":"IF(Einzelergebnisse!M31=0,\"\",Einzelergebnisse!M31)","v":""},null,{"$f":"IF(Einzelergebnisse!$H$29=0,\"\",IF(W39=\"\",0,IF(W39=I39,0.5,IF(W39>I39,1,IF(AND(W39>0,I39=\"\"),1,0)))))","v":""}]
[null,{"$f":"übertrag!M26","v":"00:00:00"},null,null,null,{"$f":"IF(Einzelergebnisse!C32=0,\"\",Einzelergebnisse!C32)","v":""},{"$f":"IF(Einzelergebnisse!D32=0,\"\",Einzelergebnisse!D32)","v":""},{"$f":"IF(Einzelergebnisse!A29=0,\"\",Einzelergebnisse!E32)","v":""},{"$f":"IF(Einzelergebnisse!F32=0,\"\",Einzelergebnisse!F32)","v":""},null,{"$f":"IF(Einzelergebnisse!$A$29=0,\"\",IF(I40=\"\",0,IF(I40=W40,0.5,IF(I40>W40,1,IF(AND(I40>0,W40=\"\"),1,0)))))","v":""},null,null,null,null,{"$f":"IF(übertrag!M11=\"\",übertrag!N11,übertrag!M11)","v":"00:00:00"},null,null,null,{"$f":"IF(Einzelergebnisse!J32=0,\"\",Einzelergebnisse!J32)","v":""},{"$f":"IF(Einzelergebnisse!K32=0,\"\",Einzelergebnisse!K32)","v":""},{"$f":"IF(Einzelergebnisse!H29=0,\"\",Einzelergebnisse!L32)","v":""},{"$f":"IF(Einzelergebnisse!M32=0,\"\",Einzelergebnisse!M32)","v":""},null,{"$f":"IF(Einzelergebnisse!$H$29=0,\"\",IF(W40=\"\",0,IF(W40=I40,0.5,IF(W40>I40,1,IF(AND(W40>0,I40=\"\"),1,0)))))","v":""}]
[null,null,null,null,null,{"$f":"IF(Einzelergebnisse!A29=0,\"\",SUM(F36:F40))","v":""},{"$f":"IF(Einzelergebnisse!A29=0,\"\",SUM(G36:G40))","v":""},{"$f":"IF(Einzelergebnisse!A29=0,\"\",SUM(H36:H40))","v":""},{"$f":"IF(Einzelergebnisse!A29=0,\"\",SUM(I36:I40))","v":""},null,{"$f":"IF(Einzelergebnisse!A29=0,\"\",SUM(K36:K37,K39:K40))","v":""},null,null,null,null,null,null,null,null,{"$f":"IF(Einzelergebnisse!H29=0,\"\",SUM(T36,T37,T39,T40))","v":""},{"$f":"IF(Einzelergebnisse!H29=0,\"\",SUM(U36,U37,U39,U40))","v":""},{"$f":"IF(Einzelergebnisse!H29=0,\"\",SUM(V36,V37,V39,V40))","v":""},{"$f":"IF(Einzelergebnisse!H29=0,\"\",SUM(W36,W37,W39,W40))","v":""},null,{"$f":"IF(Einzelergebnisse!H29=0,\"\",SUM(Y36:Y37,Y39:Y40))","v":""}]
[null,"Pa.-Nr./Mo.Ja","Name, Vorname",null,null,"Volle","Abr","Fe","Ges",null,"SaP","MaP",null,null,null,"Pa.-Nr./Mo.Ja","Name, Vorname",null,null,"Volle","Abr","Fe","Ges",null,"SaP","MaP"]
[null,{"$f":"übertrag!O20","v":0},{"$f":"übertrag!Z6","v":0},null,null,{"$f":"IF(Einzelergebnisse!C37=0,\"\",Einzelergebnisse!C37)","v":""},{"$f":"IF(Einzelergebnisse!D37=0,\"\",Einzelergebnisse!D37)","v":""},{"$f":"IF(Einzelergebnisse!A37=0,\"\",Einzelergebnisse!E37)","v":""},{"$f":"IF(Einzelergebnisse!F37=0,\"\",Einzelergebnisse!F37)","v":""},null,{"$f":"IF(Einzelergebnisse!$A$37=0,\"\",IF(I43=\"\",0,IF(I43=W43,0.5,IF(I43>W43,1,IF(AND(I43>0,W43=\"\"),1,0)))))","v":""},{"$f":"IF(Einzelergebnisse!A37=0,\"\",IF(I43=\"\",0,IF(K48&I48=Y48&W48,0.5,IF(K48&I48>Y48&W48,1,IF(K48>Y48,1,0)))))","v":""},null,null,null,{"$f":"IF(übertrag!O6=\"\",übertrag!P6,übertrag!O6)","v":0},{"$f":"IF(übertrag!K6=\"\",übertrag!L6,übertrag!K6)","v":0},null,null,{"$f":"IF(Einzelergebnisse!J37=0,\"\",Einzelergebnisse!J37)","v":""},{"$f":"IF(Einzelergebnisse!K37=0,\"\",Einzelergebnisse!K37)","v":""},{"$f":"IF(Einzelergebnisse!H37=0,\"\",Einzelergebnisse!L37)","v":""},{"$f":"IF(Einzelergebnisse!M37=0,\"\",Einzelergebnisse!M37)","v":""},null,{"$f":"IF(Einzelergebnisse!$H$37=0,\"\",IF(W43=\"\",0,IF(W43=I43,0.5,IF(W43>I43,1,IF(AND(W43>0,I43=\"\"),1,0)))))","v":""},{"$f":"IF(Einzelergebnisse!H37=0,\"\",IF(W43=\"\",0,IF(Y48&W48=K48&I48,0.5,IF(Y48&W48>K48&I48,1,IF(Y48>K48,1,0)))))","v":""}]
[null,{"$f":"übertrag!M20","v":"00:00:00"},null,null,null,{"$f":"IF(Einzelergebnisse!C38=0,\"\",Einzelergebnisse!C38)","v":""},{"$f":"IF(Einzelergebnisse!D38=0,\"\",Einzelergebnisse!D38)","v":""},{"$f":"IF(Einzelergebnisse!A37=0,\"\",Einzelergebnisse!E38)","v":""},{"$f":"IF(Einzelergebnisse!F38=0,\"\",Einzelergebnisse!F38)","v":""},null,{"$f":"IF(Einzelergebnisse!$A$37=0,\"\",IF(I44=\"\",0,IF(I44=W44,0.5,IF(I44>W44,1,IF(AND(I44>0,W44=\"\"),1,0)))))","v":""},null,null,null,null,{"$f":"IF(übertrag!M6=\"\",übertrag!N6,übertrag!M6)","v":"00:00:00"},null,null,null,{"$f":"IF(Einzelergebnisse!J38=0,\"\",Einzelergebnisse!J38)","v":""},{"$f":"IF(Einzelergebnisse!K38=0,\"\",Einzelergebnisse!K38)","v":""},{"$f":"IF(Einzelergebnisse!H37=0,\"\",Einzelergebnisse!L38)","v":""},{"$f":"IF(Einzelergebnisse!M38=0,\"\",Einzelergebnisse!M38)","v":""},null,{"$f":"IF(Einzelergebnisse!$H$37=0,\"\",IF(W44=\"\",0,IF(W44=I44,0.5,IF(W44>I44,1,IF(AND(W44>0,I44=\"\"),1,0)))))","v":""}]
[null,"Pa.-Nr./Mo.Ja","Awsp. Name, Vorname",null,null,null,null,null,null,null,null,null,null,null,null,"Pa.-Nr./Mo.Ja","Awsp. Name, Vorname"]
[null,{"$f":"übertrag!O27","v":0},{"$f":"übertrag!Z13","v":0},null,null,{"$f":"IF(Einzelergebnisse!C39=0,\"\",Einzelergebnisse!C39)","v":""},{"$f":"IF(Einzelergebnisse!D39=0,\"\",Einzelergebnisse!D39)","v":""},{"$f":"IF(Einzelergebnisse!A37=0,\"\",Einzelergebnisse!E39)","v":""},{"$f":"IF(Einzelergebnisse!F39=0,\"\",Einzelergebnisse!F39)","v":""},null,{"$f":"IF(Einzelergebnisse!$A$37=0,\"\",IF(I46=\"\",0,IF(I46=W46,0.5,IF(I46>W46,1,IF(AND(I46>0,W46=\"\"),1,0)))))","v":""},null,null,null,null,{"$f":"IF(übertrag!O12=\"\",übertrag!P12,übertrag!O12)","v":0},{"$f":"IF(übertrag!K12=\"\",übertrag!L12,übertrag!K12)","v":0},null,null,{"$f":"IF(Einzelergebnisse!J39=0,\"\",Einzelergebnisse!J39)","v":""},{"$f":"IF(Einzelergebnisse!K39=0,\"\",Einzelergebnisse!K39)","v":""},{"$f":"IF(Einzelergebnisse!H37=0,\"\",Einzelergebnisse!L39)","v":""},{"$f":"IF(Einzelergebnisse!M39=0,\"\",Einzelergebnisse!M39)","v":""},null,{"$f":"IF(Einzelergebnisse!$H$37=0,\"\",IF(W46=\"\",0,IF(W46=I46,0.5,IF(W46>I46,1,IF(AND(W46>0,I46=\"\"),1,0)))))","v":""}]
[null,{"$f":"übertrag!M27","v":"00:00:00"},null,null,null,{"$f":"IF(Einzelergebnisse!C40=0,\"\",Einzelergebnisse!C40)","v":""},{"$f":"IF(Einzelergebnisse!D40=0,\"\",Einzelergebnisse!D40)","v":""},{"$f":"IF(Einzelergebnisse!A37=0,\"\",Einzelergebnisse!E40)","v":""},{"$f":"IF(Einzelergebnisse!F40=0,\"\",Einzelergebnisse!F40)","v":""},null,{"$f":"IF(Einzelergebnisse!$A$37=0,\"\",IF(I47=\"\",0,IF(I47=W47,0.5,IF(I47>W47,1,IF(AND(I47>0,W47=\"\"),1,0)))))","v":""},null,null,null,null,{"$f":"IF(übertrag!M12=\"\",übertrag!N12,übertrag!M12)","v":"00:00:00"},null,null,null,{"$f":"IF(Einzelergebnisse!J40=0,\"\",Einzelergebnisse!J40)","v":""},{"$f":"IF(Einzelergebnisse!K40=0,\"\",Einzelergebnisse!K40)","v":""},{"$f":"IF(Einzelergebnisse!H37=0,\"\",Einzelergebnisse!L40)","v":""},{"$f":"IF(Einzelergebnisse!M40=0,\"\",Einzelergebnisse!M40)","v":""},null,{"$f":"IF(Einzelergebnisse!$H$37=0,\"\",IF(W47=\"\",0,IF(W47=I47,0.5,IF(W47>I47,1,IF(AND(W47>0,I47=\"\"),1,0)))))","v":""}]
[null,null,null,null,null,{"$f":"IF(Einzelergebnisse!A37=0,\"\",SUM(F43:F47))","v":""},{"$f":"IF(Einzelergebnisse!A37=0,\"\",SUM(G43:G47))","v":""},{"$f":"IF(Einzelergebnisse!A37=0,\"\",SUM(H43:H47))","v":""},{"$f":"IF(Einzelergebnisse!A37=0,\"\",SUM(I43:I47))","v":""},null,{"$f":"IF(Einzelergebnisse!A37=0,\"\",SUM(K43:K44,K46:K47))","v":""},null,null,null,null,null,null,null,null,{"$f":"IF(Einzelergebnisse!H37=0,\"\",SUM(T43,T44,T46,T47))","v":""},{"$f":"IF(Einzelergebnisse!H37=0,\"\",SUM(U43,U44,U46,U47))","v":""},{"$f":"IF(Einzelergebnisse!H37=0,\"\",SUM(V43,V44,V46,V47))","v":""},{"$f":"IF(Einzelergebnisse!H37=0,\"\",SUM(W43,W44,W46,W47))","v":""},null,{"$f":"IF(Einzelergebnisse!H37=0,\"\",SUM(Y43:Y44,Y46:Y47))","v":""}]
[null,"Pa.-Nr./Mo.Ja","Name, Vorname",null,null,"Volle","Abr","Fe","Ges",null,"SaP","MaP",null,null,null,"Pa.-Nr./Mo.Ja","Name, Vorname",null,null,"Volle","Abr","Fe","Ges",null,"SaP","MaP"]
[null,{"$f":"übertrag!O21","v":0},{"$f":"übertrag!Z7","v":0},null,null,{"$f":"IF(Einzelergebnisse!C45=0,\"\",Einzelergebnisse!C45)","v":""},{"$f":"IF(Einzelergebnisse!D45=0,\"\",Einzelergebnisse!D45)","v":""},{"$f":"IF(Einzelergebnisse!A45=0,\"\",Einzelergebnisse!E45)","v":""},{"$f":"IF(Einzelergebnisse!F45=0,\"\",Einzelergebnisse!F45)","v":""},null,{"$f":"IF(Einzelergebnisse!$A$45=0,\"\",IF(I50=\"\",0,IF(I50=W50,0.5,IF(I50>W50,1,IF(AND(I50>0,W50=\"\"),1,0)))))","v":""},{"$f":"IF(Einzelergebnisse!A45=0,\"\",IF(I50=\"\",0,IF(K55&I55=Y55&W55,0.5,IF(K55&I55>Y55&W55,1,IF(K55>Y55,1,0)))))","v":""},null,null,null,{"$f":"IF(übertrag!O7=\"\",übertrag!P7,übertrag!O7)","v":0},{"$f":"IF(übertrag!K7=\"\",übertrag!L7,übertrag!K7)","v":0},null,null,{"$f":"IF(Einzelergebnisse!J45=0,\"\",Einzelergebnisse!J45)","v":""},{"$f":"IF(Einzelergebnisse!K45=0,\"\",Einzelergebnisse!K45)","v":""},{"$f":"IF(Einzelergebnisse!H45=0,\"\",Einzelergebnisse!L45)","v":""},{"$f":"IF(Einzelergebnisse!M45=0,\"\",Einzelergebnisse!M45)","v":""},null,{"$f":"IF(Einzelergebnisse!$H$45=0,\"\",IF(W50=\"\",0,IF(W50=I50,0.5,IF(W50>I50,1,IF(AND(W50>0,I50=\"\"),1,0)))))","v":""},{"$f":"IF(Einzelergebnisse!H45=0,\"\",IF(W50=\"\",0,IF(Y55&W55=K55&I55,0.5,IF(Y55&W55>K55&I55,1,IF(Y55>K55,1,0)))))","v":""}]
[null,{"$f":"übertrag!M21","v":"00:00:00"},null,null,null,{"$f":"IF(Einzelergebnisse!C46=0,\"\",Einzelergebnisse!C46)","v":""},{"$f":"IF(Einzelergebnisse!D46=0,\"\",Einzelergebnisse!D46)","v":""},{"$f":"IF(Einzelergebnisse!A45=0,\"\",Einzelergebnisse!E46)","v":""},{"$f":"IF(Einzelergebnisse!F46=0,\"\",Einzelergebnisse!F46)","v":""},null,{"$f":"IF(Einzelergebnisse!$A$45=0,\"\",IF(I51=\"\",0,IF(I51=W51,0.5,IF(I51>W51,1,IF(AND(I51>0,W51=\"\"),1,0)))))","v":""},null,null,null,null,{"$f":"IF(übertrag!M7=\"\",übertrag!N7,übertrag!M7)","v":"00:00:00"},null,null,null,{"$f":"IF(Einzelergebnisse!J46=0,\"\",Einzelergebnisse!J46)","v":""},{"$f":"IF(Einzelergebnisse!K46=0,\"\",Einzelergebnisse!K46)","v":""},{"$f":"IF(Einzelergebnisse!H45=0,\"\",Einzelergebnisse!L46)","v":""},{"$f":"IF(Einzelergebnisse!M46=0,\"\",Einzelergebnisse!M46)","v":""},null,{"$f":"IF(Einzelergebnisse!$H$45=0,\"\",IF(W51=\"\",0,IF(W51=I51,0.5,IF(W51>I51,1,IF(AND(W51>0,I51=\"\"),1,0)))))","v":""}]
[null,"Pa.-Nr./Mo.Ja","Awsp. Name, Vorname",null,null,null,null,null,null,null,null,null,null,null,null,"Pa.-Nr./Mo.Ja","Awsp. Name, Vorname"]
[null,{"$f":"übertrag!O28","v":0},{"$f":"übertrag!Z14","v":0},null,null,{"$f":"IF(Einzelergebnisse!C47=0,\"\",Einzelergebnisse!C47)","v":""},{"$f":"IF(Einzelergebnisse!D47=0,\"\",Einzelergebnisse!D47)","v":""},{"$f":"IF(Einzelergebnisse!A45=0,\"\",Einzelergebnisse!E47)","v":""},{"$f":"IF(Einzelergebnisse!F47=0,\"\",Einzelergebnisse!F47)","v":""},null,{"$f":"IF(Einzelergebnisse!$A$45=0,\"\",IF(I53=\"\",0,IF(I53=W53,0.5,IF(I53>W53,1,IF(AND(I53>0,W53=\"\"),1,0)))))","v":""},null,null,null,null,{"$f":"IF(übertrag!O13=\"\",übertrag!P13,übertrag!O13)","v":0},{"$f":"IF(übertrag!K13=\"\",übertrag!L13,übertrag!K13)","v":0},null,null,{"$f":"IF(Einzelergebnisse!J47=0,\"\",Einzelergebnisse!J47)","v":""},{"$f":"IF(Einzelergebnisse!K47=0,\"\",Einzelergebnisse!K47)","v":""},{"$f":"IF(Einzelergebnisse!H45=0,\"\",Einzelergebnisse!L47)","v":""},{"$f":"IF(Einzelergebnisse!M47=0,\"\",Einzelergebnisse!M47)","v":""},null,{"$f":"IF(Einzelergebnisse!$H$45=0,\"\",IF(W53=\"\",0,IF(W53=I53,0.5,IF(W53>I53,1,IF(AND(W53>0,I53=\"\"),1,0)))))","v":""}]
[null,{"$f":"übertrag!M28","v":"00:00:00"},null,null,null,{"$f":"IF(Einzelergebnisse!C48=0,\"\",Einzelergebnisse!C48)","v":""},{"$f":"IF(Einzelergebnisse!D48=0,\"\",Einzelergebnisse!D48)","v":""},{"$f":"IF(Einzelergebnisse!A45=0,\"\",Einzelergebnisse!E48)","v":""},{"$f":"IF(Einzelergebnisse!F48=0,\"\",Einzelergebnisse!F48)","v":""},null,{"$f":"IF(Einzelergebnisse!$A$45=0,\"\",IF(I54=\"\",0,IF(I54=W54,0.5,IF(I54>W54,1,IF(AND(I54>0,W54=\"\"),1,0)))))","v":""},null,null,null,null,{"$f":"IF(übertrag!M13=\"\",übertrag!N13,übertrag!M13)","v":"00:00:00"},null,null,null,{"$f":"IF(Einzelergebnisse!J48=0,\"\",Einzelergebnisse!J48)","v":""},{"$f":"IF(Einzelergebnisse!K48=0,\"\",Einzelergebnisse!K48)","v":""},{"$f":"IF(Einzelergebnisse!H45=0,\"\",Einzelergebnisse!L48)","v":""},{"$f":"IF(Einzelergebnisse!M48=0,\"\",Einzelergebnisse!M48)","v":""},null,{"$f":"IF(Einzelergebnisse!$H$45=0,\"\",IF(W54=\"\",0,IF(W54=I54,0.5,IF(W54>I54,1,IF(AND(W54>0,I54=\"\"),1,0)))))","v":""}]
[null,"Mannschaftsführer",null,null,null,{"$f":"IF(Einzelergebnisse!A45=0,\"\",SUM(F50:F54))","v":""},{"$f":"IF(Einzelergebnisse!A45=0,\"\",SUM(G50:G54))","v":""},{"$f":"IF(Einzelergebnisse!A45=0,\"\",SUM(H50:H54))","v":""},{"$f":"IF(Einzelergebnisse!A45=0,\"\",SUM(I50:I54))","v":""},null,{"$f":"IF(Einzelergebnisse!A45=0,\"\",SUM(K50:K51,K53:K54))","v":""},null,null,null,null,"Mannschaftsführer",null,null,null,{"$f":"IF(Einzelergebnisse!H45=0,\"\",SUM(T50,T51,T53,T54))","v":""},{"$f":"IF(Einzelergebnisse!H45=0,\"\",SUM(U50,U51,U53,U54))","v":""},{"$f":"IF(Einzelergebnisse!H45=0,\"\",SUM(V50,V51,V53,V54))","v":""},{"$f":"IF(Einzelergebnisse!H45=0,\"\",SUM(W50,W51,W53,W54))","v":""},null,{"$f":"IF(Einzelergebnisse!H45=0,\"\",SUM(Y50:Y51,Y53:Y54))","v":""}]
[null,{"$f":"übertrag!Z8","v":0},null,null,null,null,null,null,null,"SaP",{"$f":"IF(Einzelergebnisse!A5=0,\"\",SUM(K20,K27,K41,K34,K48,K55))","v":""},{"$f":"IF(Einzelergebnisse!A5=0,\"\",SUM(L15,L22,L29,L36,L43,L50))","v":""},"MaP",null,null,{"$f":"IF(übertrag!K14=\"\",übertrag!L14,übertrag!K14)","v":0},null,null,null,null,null,null,"SaP",null,{"$f":"IF(Einzelergebnisse!H5=0,\"\",SUM(Y20,Y27,Y41,Y34,Y48,Y55))","v":""},{"$f":"IF(Einzelergebnisse!H5=0,\"\",SUM(Z15,Z22,Z29,Z36,Z43,Z50))","v":""},"MaP"]
[null,null,null,null,null,null,null,null,null,null,null,null,null,"Endstand"]
[null,null,null,"Gesamt Kegel",{"$f":"IF(Einzelergebnisse!A5=0,\"\",SUM(I20,I27,I34,I41,I48,I55,I57))","v":""},"Kegel Punkte",null,null,null,null,{"$f":"IF(Einzelergebnisse!A5=0,\"\",IF(E58=0,0,IF(E58=S58,1,IF(E58>S58,2,0))))","v":""},null,{"$f":"IF(Einzelergebnisse!A5=0,\"\",SUM(L56,K58))","v":""},":",{"$f":"IF(Einzelergebnisse!H5=0,\"\",SUM(Y58,Z56))","v":""},null,null,"Gesamt Kegel",{"$f":"IF(Einzelergebnisse!H5=0,\"\",SUM(W20,W27,W34,W41,W48,W55,W57))","v":""},"Kegel Punkte",null,null,null,null,{"$f":"IF(Einzelergebnisse!H5=0,\"\",IF(S58=0,0,IF(S58=E58,1,IF(S58>E58,2,0))))","v":""}]
[null,null,null,null,null,null,null,null,null,null,null,"Tabellenpunkte",{"$f":"IF(Einzelergebnisse!A5=0,\"\",IF(M58=0,0,IF(M58=O58,1,IF(M58>O58,2,0))))","v":""},":",{"$f":"IF(Einzelergebnisse!A5=0,\"\",IF(O58=0,0,IF(O58=M58,1,IF(O58>M58,2,0))))","v":""}]
[]
[null,null,"   1)",null,null,null,null,null,"Bahn/Kugelmaterial in Ordnung  ",{"$f":"IF(übertrag!Q21=TRUE,\"x\",\"\")","v":"x"},"ja",{"$f":"IF(übertrag!Q9=TRUE,\"x\",\"\")","v":""},"nein",null,null,null,null,null,"4)",null,null,"Verletzung ",{"$f":"IF(übertrag!Q24=TRUE,\"x\",\"\")","v":""},"ja",null,{"$f":"IF(übertrag!Q17=TRUE,\"x\",\"\")","v":"x"},"nein"]
[null,null,"   2)",null,null,null,null,null,"Pässe, Werbegenehmigung i.O. ",{"$f":"IF(übertrag!Q22=TRUE,\"x\",\"\")","v":"x"},"ja",{"$f":"IF(übertrag!Q10=TRUE,\"x\",\"\")","v":""},"nein",null,null,null,null,null,"5)",null,null,"Verwarnung ",{"$f":"IF(übertrag!Q25=TRUE,\"x\",\"\")","v":""},"ja",null,{"$f":"IF(übertrag!Q18=TRUE,\"x\",\"\")","v":"x"},"nein"]
[null,null,"   3)",null,null,null,null,null,"Protest ",{"$f":"IF(übertrag!Q23=TRUE,\"x\",\"\")","v":""},"ja",{"$f":"IF(übertrag!Q16=TRUE,\"x\",\"\")","v":"x"},"nein",null,null,null,null,null,"6)",null,null,"Sonstiges ",{"$f":"IF(übertrag!Q26=TRUE,\"x\",\"\")","v":""},"ja",null,{"$f":"IF(übertrag!Q19=TRUE,\"x\",\"\")","v":"x"},"nein"]
[null,null,null,null,null,null,null,null,"Schiedsrichter OK ",{"$f":"IF(übertrag!Q27=TRUE,\"x\",\"\")","v":""},"ja",{"$f":"IF(übertrag!Q28=TRUE,\"x\",\"\")","v":""},"nein",null,null,null,"Anlagen",{"$f":"IF(übertrag!Q20=TRUE,\"x\",\"\")","v":""},null,null,null,"Schiedsrichter OK ",{"$f":"IF(übertrag!Q29=TRUE,\"x\",\"\")","v":""},"ja",null,{"$f":"IF(übertrag!Q30=TRUE,\"x\",\"\")","v":""},"nein"]
[null,null,"Ersatzspieler Heim",1,{"$f":"IF(übertrag!Z20=0,\"\",übertrag!Z20)","v":""},null,null,2,null,{"$f":"IF(übertrag!Z21=0,\"\",übertrag!Z21)","v":""},null,null,null,null,null,null,"Ersatzspieler Gast",1,{"$f":"IF(IF(übertrag!K33=\"\",übertrag!L33,übertrag!K33)=0,\"\",IF(übertrag!K33=\"\",übertrag!L33,übertrag!K33))","v":""},null,null,2,{"$f":"IF(IF(übertrag!K34=\"\",übertrag!L34,übertrag!K34)=0,\"\",IF(übertrag!K34=\"\",übertrag!L34,übertrag!K34))","v":""}]
[null,"Bemerkung"]
[]
[null,null,"Heimmannschaft",null,null,null,null,null,null,null,null,null,"Schiedsrichter / Aufsicht",null,null,null,null,null,null,"Gastmannschaft"]

{"sheet":"Einzelergebnisse","index":1,"n_rows":49,"n_cols":13,"rows_kept":49,"cut":false,"hidden":false,"merged":[[46,0,47,0],[46,7,47,7],[44,7,45,7],[38,7,39,7],[38,0,39,0],[20,0,21,0],[30,0,31,0],[22,0,23,0],[28,0,29,0],[44,0,45,0],[1,7,1,12],[1,0,1,5],[4,0,5,0],[4,7,5,7],[36,0,37,0],[30,7,31,7],[28,7,29,7],[22,7,23,7],[36,7,37,7],[20,7,21,7],[12,7,13,7],[14,7,15,7],[6,7,7,7],[6,0,7,0],[12,0,13,0],[14,0,15,0]]}
[]
[{"$f":"Spielberichtsbogen!E12","v":"Heimmannschaft"},null,null,null,null,null,null,{"$f":"Spielberichtsbogen!S12","v":"Gastmannschaft 1"}]
[]
["Name, Vorname","Bahn","Volle","Abr","Fe","Ges",null,"Name, Vorname","Bahn","Volle","Abr","Fe","Ges"]
[{"$f":"Spielberichtsbogen!C15","v":0},1,null,null,null,{"$f":"SUM(C5,D5)","v":0},null,{"$f":"Spielberichtsbogen!Q15","v":0},2,null,null,null,{"$f":"SUM(J5,K5)","v":0}]
[null,2,null,null,null,{"$f":"SUM(C6,D6)","v":0},null,null,1,null,null,null,{"$f":"SUM(J6,K6)","v":0}]
[{"$f":"Spielberichtsbogen!C18","v":0},4,null,null,null,{"$f":"SUM(C7,D7)","v":0},null,{"$f":"Spielberichtsbogen!Q18","v":0},3,null,null,null,{"$f":"SUM(J7,K7)","v":0}]
[null,3,null,null,null,{"$f":"SUM(C8,D8)","v":0},null,null,4,null,null,null,{"$f":"SUM(J8,K8)","v":0}]
[null,null,{"$f":"SUM(C5:C8)","v":0},{"$f":"SUM(D5:D8)","v":0},{"$f":"SUM(E5:E8)","v":0},{"$f":"SUM(F5:F8)","v":0},null,null,null,{"$f":"SUM(J5:J8)","v":0},{"$f":"SUM(K5:K8)","v":0},{"$f":"SUM(L5:L8)","v":0},{"$f":"SUM(M5:M8)","v":0}]
[]
[]
["Name, Vorname","Bahn","Volle","Abr","Fe","Ges",null,"Name, Vorname","Bahn","Volle","Abr","Fe","Ges"]
[{"$f":"Spielberichtsbogen!C22","v":0},3,null,null,null,{"$f":"SUM(C13,D13)","v":0},null,{"$f":"Spielberichtsbogen!Q22","v":0},4,null,null,null,{"$f":"SUM(J13,K13)","v":0}]
[null,4,null,null,null,{"$f":"SUM(C14,D14)","v":0},null,null,3,null,null,null,{"$f":"SUM(J14,K14)","v":0}]
[{"$f":"Spielberichtsbogen!C25","v":0},2,null,null,null,{"$f":"SUM(C15,D15)","v":0},null,{"$f":"Spielberichtsbogen!Q25","v":0},1,null,null,null,{"$f":"SUM(J15,K15)","v":0}]
[null,1,null,null,null,{"$f":"SUM(C16,D16)","v":0},null,null,2,null,null,null,{"$f":"SUM(J16,K16)","v":0}]
[null,null,{"$f":"SUM(C13:C16)","v":0},{"$f":"SUM(D13:D16)","v":0},{"$f":"SUM(E13:E16)","v":0},{"$f":"SUM(F13:F16)","v":0},null,null,null,{"$f":"SUM(J13:J16)","v":0},{"$f":"SUM(K13:K16)","v":0},{"$f":"SUM(L13:L16)","v":0},{"$f":"SUM(M13:M16)","v":0}]
[]
[]
["Name, Vorname","Bahn","Volle","Abr","Fe","Ges",null,"Name, Vorname","Bahn","Volle","Abr","Fe","Ges"]
[{"$f":"Spielberichtsbogen!C29","v":0},1,null,null,null,{"$f":"SUM(C21,D21)","v":0},null,{"$f":"Spielberichtsbogen!Q29","v":0},2,null,null,null,{"$f":"SUM(J21,K21)","v":0}]
[null,2,null,null,null,{"$f":"SUM(C22,D22)","v":0},null,null,1,null,null,null,{"$f":"SUM(J22,K22)","v":0}]
[{"$f":"Spielberichtsbogen!C32","v":0},3,null,null,null,{"$f":"SUM(C23,D23)","v":0},null,{"$f":"Spielberichtsbogen!Q32","v":0},4,null,null,null,{"$f":"SUM(J23,K23)","v":0}]
[null,4,null,null,null,{"$f":"SUM(C24,D24)","v":0},null,null,3,null,null,null,{"$f":"SUM(J24,K24)","v":0}]
[null,null,{"$f":"SUM(C21:C24)","v":0},{"$f":"SUM(D21:D24)","v":0},{"$f":"SUM(E21:E24)","v":0},{"$f":"SUM(F21:F24)","v":0},null,null,null,{"$f":"SUM(J21:J24)","v":0},{"$f":"SUM(K21:K24)","v":0},{"$f":"SUM(L21:L24)","v":0},{"$f":"SUM(M21:M24)","v":0}]
[]
[]
["Name, Vorname","Bahn","Volle","Abr","Fe","Ges",null,"Name, Vorname","Bahn","Volle","Abr","Fe","Ges"]
[{"$f":"Spielberichtsbogen!C36","v":0},3,null,null,null,{"$f":"SUM(C29,D29)","v":0},null,{"$f":"Spielberichtsbogen!Q36","v":0},4,null,null,null,{"$f":"SUM(J29,K29)","v":0}]
[null,4,null,null,null,{"$f":"SUM(C30,D30)","v":0},null,null,3,null,null,null,{"$f":"SUM(J30,K30)","v":0}]
[{"$f":"Spielberichtsbogen!C39","v":0},2,null,null,null,{"$f":"SUM(C31,D31)","v":0},null,{"$f":"Spielberichtsbogen!Q39","v":0},1,null,null,null,{"$f":"SUM(J31,K31)","v":0}]
[null,1,null,null,null,{"$f":"SUM(C32,D32)","v":0},null,null,2,null,null,null,{"$f":"SUM(J32,K32)","v":0}]
[null,null,{"$f":"SUM(C29:C32)","v":0},{"$f":"SUM(D29:D32)","v":0},{"$f":"SUM(E29:E32)","v":0},{"$f":"SUM(F29:F32)","v":0},null,null,null,{"$f":"SUM(J29:J32)","v":0},{"$f":"SUM(K29:K32)","v":0},{"$f":"SUM(L29:L32)","v":0},{"$f":"SUM(M29:M32)","v":0}]
[]
[]
["Name, Vorname","Bahn","Volle","Abr","Fe","Ges",null,"Name, Vorname","Bahn","Volle","Abr","Fe","Ges"]
[{"$f":"Spielberichtsbogen!C43","v":0},1,null,null,null,{"$f":"SUM(C37,D37)","v":0},null,{"$f":"Spielberichtsbogen!Q43","v":0},2,null,null,null,{"$f":"SUM(J37,K37)","v":0}]
[null,2,null,null,null,{"$f":"SUM(C38,D38)","v":0},null,null,1,null,null,null,{"$f":"SUM(J38,K38)","v":0}]
[{"$f":"Spielberichtsbogen!C46","v":0},4,null,null,null,{"$f":"SUM(C39,D39)","v":0},null,{"$f":"Spielberichtsbogen!Q46","v":0},3,null,null,null,{"$f":"SUM(J39,K39)","v":0}]
[null,3,null,null,null,{"$f":"SUM(C40,D40)","v":0},null,null,4,null,null,null,{"$f":"SUM(J40,K40)","v":0}]
[null,null,{"$f":"SUM(C37:C40)","v":0},{"$f":"SUM(D37:D40)","v":0},{"$f":"SUM(E37:E40)","v":0},{"$f":"SUM(F37:F40)","v":0},null,null,null,{"$f":"SUM(J37:J40)","v":0},{"$f":"SUM(K37:K40)","v":0},{"$f":"SUM(L37:L40)","v":0},{"$f":"SUM(M37:M40)","v":0}]
[]
[]
["Name, Vorname","Bahn","Volle","Abr","Fe","Ges",null,"Name, Vorname","Bahn","Volle","Abr","Fe","Ges"]
[{"$f":"Spielberichtsbogen!C50","v":0},3,null,null,null,{"$f":"SUM(C45,D45)","v":0},null,{"$f":"Spielberichtsbogen!Q50","v":0},4,null,null,null,{"$f":"SUM(J45,K45)","v":0}]
[null,4,null,null,null,{"$f":"SUM(C46,D46)","v":0},null,null,3,null,null,null,{"$f":"SUM(J46,K46)","v":0}]
[{"$f":"Spielberichtsbogen!C53","v":0},2,null,null,null,{"$f":"SUM(C47,D47)","v":0},null,{"$f":"Spielberichtsbogen!Q53","v":0},1,null,null,null,{"$f":"SUM(J47,K47)","v":0}]
[null,1,null,null,null,{"$f":"SUM(C48,D48)","v":0},null,null,2,null,null,null,{"$f":"SUM(J48,K48)","v":0}]
[null,null,{"$f":"SUM(C45:C48)","v":0},{"$f":"SUM(D45:D48)","v":0},{"$f":"SUM(E45:E48)","v":0},{"$f":"SUM(F45:F48)","v":0},null,null,null,{"$f":"SUM(J45:J48)","v":0},{"$f":"SUM(K45:K48)","v":0},{"$f":"SUM(L45:L48)","v":0},{"$f":"SUM(M45:M48)","v":0}]

{"sheet":"MANNSCHAFTEN+SPIELER","index":2,"n_rows":233,"n_cols":22,"rows_kept":233,"cut":false,"hidden":false,"merged":[[0,14,0,20],[0,0,0,6],[3,21,5,26]]}
["Gastmannschaften",null,null,null,null,null,null,null,null,null,null,null,null,null,"Heimmannschaft"]
["KLUB / Verein",null,"Mon/Jahr",null,"Paß-     Nummer",null,"Name, Vorname",null,null,null,null,null,null,null,"KLUB / Verein",null,"Mon/Jahr",null,"Paß-     Nummer",null,"Name, Vorname"]
["Gastmannschaft 1",1,null,1,null,1,null,null,null,null,null,null,null,null,"Heimmannschaft",1,null,1,null,1]
[{"$f":"$A$3","v":"Gastmannschaft 1"},2,null,2,null,2,null,null,null,null,null,null,null,null,{"$f":"$O$3","v":"Heimmannschaft"},2,null,2,null,2,null,"WICHTIG"]
["Gastmannschaft 1",3,null,3,null,3,null,null,null,null,null,null,null,null,"Heimmannschaft",3,null,3,null,3]
["Gastmannschaft 1",4,null,4,null,4,null,null,null,null,null,null,null,null,"Heimmannschaft",4,null,4,null,4]
["Gastmannschaft 1",5,null,5,null,5,null,null,null,null,null,null,null,null,"Heimmannschaft",5,null,5,null,5,null,"Keine Leerzeilen in den einzelnen Listen,"]
["Gastmannschaft 1",6,null,6,null,6,null,null,null,null,null,null,null,null,"Heimmannschaft",6,null,6,null,6,null,"sonst funktioniert die Auswahl im Spielbericht nicht!!!"]
["Gastmannschaft 1",7,null,7,null,7,null,null,null,null,null,null,null,null,"Heimmannschaft",7,null,7,null,7]
["Gastmannschaft 1",8,null,8,null,8,null,null,null,null,null,null,null,null,"Heimmannschaft",8,null,8,null,8]
["Gastmannschaft 1",9,null,9,null,9,null,null,null,null,null,null,null,null,"Heimmannschaft",9,null,9,null,9]
["Gastmannschaft 1",10,null,10,null,10,null,null,null,null,null,null,null,null,"Heimmannschaft",10,null,10,null,10]
["Gastmannschaft 1",11,null,11,null,11,null,null,null,null,null,null,null,null,"Heimmannschaft",11,null,11,null,11]
["Gastmannschaft 1",12,null,12,null,12,null,1,"X",1,"eins",1,1,null,"Heimmannschaft",12,null,12,null,12]
["Gastmannschaft 1",13,null,13,null,13,null,null,null,null,null,null,null,null,"Heimmannschaft",13,null,13,null,13]
["Gastmannschaft 1",14,null,14,null,14,null,null,null,null,null,null,null,null,"Heimmannschaft",14,null,14,null,14]
["Gastmannschaft 1",15,null,15,null,15,null,null,null,null,null,null,null,null,"Heimmannschaft",15,null,15,null,15]
["Gastmannschaft 1",16,null,16,null,16,null,null,null,null,null,null,null,null,"Heimmannschaft",16,null,16,null,16]
["Gastmannschaft 1",17,null,17,null,17,null,null,null,null,null,null,null,null,"Heimmannschaft",17,null,17,null,17]
["Gastmannschaft 1",18,null,18,null,18,null,null,null,null,null,null,null,null,"Heimmannschaft",18,null,18,null,18]
["Gastmannschaft 1",19,null,19,null,19,null,null,null,null,null,null,null,null,"Heimmannschaft",19,null,19,null,19]
["Gastmannschaft 1",20,null,20,null,20,null,null,null,null,null,null,null,null,"Heimmannschaft",20,null,20,null,20]
["Gastmannschaft 1",21,null,21,null,21,null,2,null,2,"zwei",2,2,null,"Heimmannschaft",21,null,21,null,21]
["Gastmannschaft 2",1,null,1,null,1,null,null,null,3,"drei",3,3,null,"Heimmannschaft",22,null,22,null,22]
[{"$f":"$A$24","v":"Gastmannschaft 2"},2,null,2,null,2,null,null,null,4,"vier",4,4,null,"Heimmannschaft",23,null,23,null,23]
["Gastmannschaft 2",3,null,3,null,3,null,null,null,5,"fünf",5,5,null,"Heimmannschaft",24,null,24,null,24]
["Gastmannschaft 2",4,null,4,null,4,null,null,null,6,"sechs",6,6,null,"Heimmannschaft",25,null,25,null,25]
["Gastmannschaft 2",5,null,5,null,5,null,null,null,7,"sieben",7,"E",null,"Heimmannschaft",26,null,26,null,26]
["Gastmannschaft 2",6,null,6,null,6,null,null,null,8,"acht",8,"A",null,"Heimmannschaft",27,null,27,null,27]
["Gastmannschaft 2",7,null,7,null,7,null,null,null,9,"neun",9,null,null,"Heimmannschaft",28,null,28,null,28]
["Gastmannschaft 2",8,null,8,null,8,null,null,null,10,"zehn",null,null,null,"Heimmannschaft",29,null,29,null,29]
["Gastmannschaft 2",9,null,9,null,9,null,null,null,11,"elf",null,null,null,"Heimmannschaft",30,null,30,null,30]
["Gastmannschaft 2",10,null,10,null,10,null,null,null,12,"zwölf",null,null,null,"Heimmannschaft",31,null,31,null,31]
["Gastmannschaft 2",11,null,11,null,11,null,null,null,13,null,null,null,null,"Heimmannschaft",32,null,32,null,32]
["Gastmannschaft 2",12,null,12,null,12,null,null,null,null,null,null,null,null,"Heimmannschaft",33,null,33,null,33]
["Gastmannschaft 2",13,null,13,null,13,null,null,null,null,null,null,null,null,"Heimmannschaft",34,null,34,null,34]
["Gastmannschaft 2",14,null,14,null,14,null,null,null,null,null,null,null,null,"Heimmannschaft",35,null,35,null,35]
["Gastmannschaft 2",15,null,15,null,15,null,null,null,null,null,null,null,null,"Heimmannschaft",36,null,36,null,36]
["Gastmannschaft 2",16,null,16,null,16,null,null,null,null,null,null,null,null,"Heimmannschaft",37,null,37,null,37]
["Gastmannschaft 2",17,null,17,null,17,null,null,null,null,null,null,null,null,"Heimmannschaft",38,null,38,null,38]
["Gastmannschaft 2",18,null,18,null,18,null,null,null,null,null,null,null,null,"Heimmannschaft",39,null,39,null,39]
["Gastmannschaft 2",19,null,19,null,19,null,null,null,null,null,null,null,null,"Heimmannschaft",40,null,40,null,40]
["Gastmannschaft 2",20,null,20,null,20,null,null,null,null,null,null,null,null,"Heimmannschaft",41,null,41,null,41]
["Gastmannschaft 2",21,null,21,null,21,null,null,null,null,null,null,null,null,"Heimmannschaft",42,null,42,null,42]
["Gastmannschaft 3",1,null,1,null,1,null,null,null,null,null,null,null,null,"Heimmannschaft",43,null,43,null,43]
[{"$f":"$A$45","v":"Gastmannschaft 3"},2,null,2,null,2,null,null,null,null,null,null,null,null,"Heimmannschaft",44,null,44,null,44]
["Gastmannschaft 3",3,null,3,null,3,null,null,null,null,null,null,null,null,"Heimmannschaft",45,null,45,null,45]
["Gastmannschaft 3",4,null,4,null,4,null,null,null,null,null,null,null,null,"Heimmannschaft",46,null,46,null,46]
["Gastmannschaft 3",5,null,5,null,5,null,null,null,null,null,null,null,null,"Heimmannschaft",47,null,47,null,47]
["Gastmannschaft 3",6,null,6,null,6,null,null,null,null,null,null,null,null,"Heimmannschaft",48,null,48,null,48]
["Gastmannschaft 3",7,null,7,null,7,null,null,null,null,null,null,null,null,"Heimmannschaft",49,null,49,null,49]
["Gastmannschaft 3",8,null,8,null,8,null,null,null,null,null,null,null,null,"Heimmannschaft",50,null,50,null,50]
["Gastmannschaft 3",9,null,9,null,9,null,null,null,null,null,null,null,null,"Heimmannschaft",51,null,51,null,51]
["Gastmannschaft 3",10,null,10,null,10,null,null,null,null,null,null,null,null,"Heimmannschaft",52,null,52,null,52]
["Gastmannschaft 3",11,null,11,null,11,null,null,null,null,null,null,null,null,"Heimmannschaft",53,null,53,null,53]
["Gastmannschaft 3",12,null,12,null,12,null,null,null,null,null,null,null,null,"Heimmannschaft",54,null,54,null,54]
["Gastmannschaft 3",13,null,13,null,13,null,null,null,null,null,null,null,null,"Heimmannschaft",55,null,55,null,55]
["Gastmannschaft 3",14,null,14,null,14,null,null,null,null,null,null,null,null,"Heimmannschaft",56,null,56,null,56]
["Gastmannschaft 3",15,null,15,null,15,null,null,null,null,null,null,null,null,"Heimmannschaft",57,null,57,null,57]
["Gastmannschaft 3",16,null,16,null,16,null,null,null,null,null,null,null,null,"Heimmannschaft",58,null,58,null,58]
["Gastmannschaft 3",17,null,17,null,17,null,null,null,null,null,null,null,null,"Heimmannschaft",59,null,59,null,59]
["Gastmannschaft 3",18,null,18,null,18,null,null,null,null,null,null,null,null,"Heimmannschaft",60,null,60,null,60]
["Gastmannschaft 3",19,null,19,null,19,null,null,null,null,null,null,null,null,"Heimmannschaft",61,null,61,null,61]
["Gastmannschaft 3",20,null,20,null,20,null,null,null,null,null,null,null,null,"Heimmannschaft",62,null,62,null,62]
["Gastmannschaft 3",21,null,21,null,21,null,null,null,null,null,null,null,null,"Heimmannschaft",63,null,63,null,63]
["Gastmannschaft 4",1,null,1,null,1,null,null,null,null,null,null,null,null,"Heimmannschaft",64,null,64,null,64]
[{"$f":"$A$66","v":"Gastmannschaft 4"},2,null,2,null,2,null,null,null,null,null,null,null,null,{"$f":"$O$3","v":"Heimmannschaft"},65,null,65,null,65]
["Gastmannschaft 4",3,null,3,null,3,null,null,null,null,null,null,null,null,"Heimmannschaft",66,null,66,null,66]
["Gastmannschaft 4",4,null,4,null,4,null,null,null,null,null,null,null,null,"Heimmannschaft",67,null,67,null,67]
["Gastmannschaft 4",5,null,5,null,5,null,null,null,null,null,null,null,null,"Heimmannschaft",68,null,68,null,68]
["Gastmannschaft 4",6,null,6,null,6,null,null,null,null,null,null,null,null,"Heimmannschaft",69,null,69,null,69]
["Gastmannschaft 4",7,null,7,null,7,null,null,null,null,null,null,null,null,"Heimmannschaft",70,null,70,null,70]
["Gastmannschaft 4",8,null,8,null,8,null,null,null,null,null,null,null,null,"Heimmannschaft",71,null,71,null,71]
["Gastmannschaft 4",9,null,9,null,9,null,null,null,null,null,null,null,null,"Heimmannschaft",72,null,72,null,72]
["Gastmannschaft 4",10,null,10,null,10,null,null,null,null,null,null,null,null,"Heimmannschaft",73,null,73,null,73]
["Gastmannschaft 4",11,null,11,null,11,null,null,null,null,null,null,null,null,"Heimmannschaft",74,null,74,null,74]
["Gastmannschaft 4",12,null,12,null,12,null,null,null,null,null,null,null,null,"Heimmannschaft",75,null,75,null,75]
["Gastmannschaft 4",13,null,13,null,13,null,null,null,null,null,null,null,null,"Heimmannschaft",76,null,76,null,76]
["Gastmannschaft 4",14,null,14,null,14,null,null,null,null,null,null,null,null,"Heimmannschaft",77,null,77,null,77]
["Gastmannschaft 4",15,null,15,null,15,null,null,null,null,null,null,null,null,"Heimmannschaft",78,null,78,null,78]
["Gastmannschaft 4",16,null,16,null,16,null,null,null,null,null,null,null,null,"Heimmannschaft",79,null,79,null,79]
["Gastmannschaft 4",17,null,17,null,17,null,null,null,null,null,null,null,null,"Heimmannschaft",80,null,80,null,80]
["Gastmannschaft 4",18,null,18,null,18,null,null,null,null,null,null,null,null,"Heimmannschaft",81,null,81,null,81]
["Gastmannschaft 4",19,null,19,null,19,null,null,null,null,null,null,null,null,"Heimmannschaft",82,null,82,null,82]
["Gastmannschaft 4",20,null,20,null,20,null,null,null,null,null,null,null,null,"Heimmannschaft",83,null,83,null,83]
["Gastmannschaft 4",21,null,21,null,21,null,null,null,null,null,null,null,null,"Heimmannschaft",84,null,84,null,84]
["Gastmannschaft 5",1,null,1,null,1,null,"Gastmannschaft 05 2","Gastmannschaft 05 3","Gastmannschaft 05 4","Gastmannschaft 05 5","Gastmannschaft 05 6","Gastmannschaft 05 7",null,"Heimmannschaft",85,null,85,null,85]
[{"$f":"$A$87","v":"Gastmannschaft 5"},2,null,2,null,2,null,null,null,null,null,null,null,null,"Heimmannschaft",86,null,86,null,86]
["Gastmannschaft 5",3,null,3,null,3,null,null,null,null,null,null,null,null,"Heimmannschaft",87,null,87,null,87]
["Gastmannschaft 5",4,null,4,null,4,null,null,null,null,null,null,null,null,"Heimmannschaft",88,null,88,null,88]
["Gastmannschaft 5",5,null,5,null,5,null,null,null,null,null,null,null,null,"Heimmannschaft",89,null,89,null,89]
["Gastmannschaft 5",6,null,6,null,6,null,null,null,null,null,null,null,null,"Heimmannschaft",90,null,90,null,90]
["Gastmannschaft 5",7,null,7,null,7,null,null,null,null,null,null,null,null,"Heimmannschaft",91,null,91,null,91]
["Gastmannschaft 5",8,null,8,null,8,null,null,null,null,null,null,null,null,"Heimmannschaft",92,null,92,null,92]
["Gastmannschaft 5",9,null,9,null,9,null,null,null,null,null,null,null,null,"Heimmannschaft",93,null,93,null,93]
["Gastmannschaft 5",10,null,10,null,10,null,null,null,null,null,null,null,null,"Heimmannschaft",94,null,94,null,94]
["Gastmannschaft 5",11,null,11,null,11,null,null,null,null,null,null,null,null,"Heimmannschaft",95,null,95,null,95]
["Gastmannschaft 5",12,null,12,null,12,null,null,null,null,null,null,null,null,"Heimmannschaft",96,null,96,null,96]
["Gastmannschaft 5",13,null,13,null,13,null,null,null,null,null,null,null,null,"Heimmannschaft",97,null,97,null,97]
["Gastmannschaft 5",14,null,14,null,14,null,null,null,null,null,null,null,null,"Heimmannschaft",98,null,98,null,98]
["Gastmannschaft 5",15,null,15,null,15,null,null,null,null,null,null,null,null,"Heimmannschaft",99,null,99,null,99]
["Gastmannschaft 5",16,null,16,null,16,null,null,null,null,null,null,null,null,"Heimmannschaft",100,null,100,null,100]
["Gastmannschaft 5",17,null,17,null,17,null,null,null,null,null,null,null,null,"Heimmannschaft",101,null,101,null,101]
["Gastmannschaft 5",18,null,18,null,18,null,null,null,null,null,null,null,null,"Heimmannschaft",102,null,102,null,102]
["Gastmannschaft 5",19,null,19,null,19,null,null,null,null,null,null,null,null,"Heimmannschaft",103,null,103,null,103]
["Gastmannschaft 5",20,null,20,null,20,null,null,null,null,null,null,null,null,"Heimmannschaft",104,null,104,null,104]
["Gastmannschaft 5",21,null,21,null,21,null,null,null,null,null,null,null,null,"Heimmannschaft",105,null,105,null,105]
["Gastmannschaft 6",1,null,1,null,1,null,null,null,null,null,null,null,null,"Heimmannschaft",106,null,106,null,106]
[{"$f":"$A$108","v":"Gastmannschaft 6"},2,null,2,null,2,null,null,null,null,null,null,null,null,"Heimmannschaft",107,null,107,null,107]
["Gastmannschaft 6",3,null,3,null,3,null,null,null,null,null,null,null,null,"Heimmannschaft",108,null,108,null,108]
["Gastmannschaft 6",4,null,4,null,4,null,null,null,null,null,null,null,null,"Heimmannschaft",109,null,109,null,109]
["Gastmannschaft 6",5,null,5,null,5,null,null,null,null,null,null,null,null,"Heimmannschaft",110,null,110,null,110]
["Gastmannschaft 6",6,null,6,null,6,null,null,null,null,null,null,null,null,"Heimmannschaft",111,null,111,null,111]
["Gastmannschaft 6",7,null,7,null,7,null,null,null,null,null,null,null,null,"Heimmannschaft",112,null,112,null,112]
["Gastmannschaft 6",8,null,8,null,8,null,null,null,null,null,null,null,null,"Heimmannschaft",113,null,113,null,113]
["Gastmannschaft 6",9,null,9,null,9,null,null,null,null,null,null,null,null,"Heimmannschaft",114,null,114,null,114]
["Gastmannschaft 6",10,null,10,null,10,null,null,null,null,null,null,null,null,"Heimmannschaft",115,null,115,null,115]
["Gastmannschaft 6",11,null,11,null,11,null,null,null,null,null,null,null,null,"Heimmannschaft",116,null,116,null,116]
["Gastmannschaft 6",12,null,12,null,12,null,null,null,null,null,null,null,null,"Heimmannschaft",117,null,117,null,117]
["Gastmannschaft 6",13,null,13,null,13,null,null,null,null,null,null,null,null,"Heimmannschaft",118,null,118,null,118]
["Gastmannschaft 6",14,null,14,null,14,null,null,null,null,null,null,null,null,"Heimmannschaft",119,null,119,null,119]
["Gastmannschaft 6",15,null,15,null,15,null,null,null,null,null,null,null,null,"Heimmannschaft",120,null,120,null,120]
["Gastmannschaft 6",16,null,16,null,16,null,null,null,null,null,null,null,null,"Heimmannschaft",121,null,121,null,121]
["Gastmannschaft 6",17,null,17,null,17,null,null,null,null,null,null,null,null,"Heimmannschaft",122,null,122,null,122]
["Gastmannschaft 6",18,null,18,null,18,null,null,null,null,null,null,null,null,"Heimmannschaft",123,null,123,null,123]
["Gastmannschaft 6",19,null,19,null,19,null,null,null,null,null,null,null,null,"Heimmannschaft",124,null,124,null,124]
["Gastmannschaft 6",20,null,20,null,20,null,null,null,null,null,null,null,null,"Heimmannschaft",125,null,125,null,125]
["Gastmannschaft 6",21,null,21,null,21,null,null,null,null,null,null,null,null,"Heimmannschaft",126,null,126,null,126]
["Gastmannschaft 7",1,null,1,null,1,null,null,null,null,null,null,null,null,"Heimmannschaft",127,null,127,null,127]
[{"$f":"$A$129","v":"Gastmannschaft 7"},2,null,2,null,2,null,null,null,null,null,null,null,null,"Heimmannschaft",128,null,128,null,128]
["Gastmannschaft 7",3,null,3,null,3,null,null,null,null,null,null,null,null,{"$f":"$O$3","v":"Heimmannschaft"},129,null,129,null,129]
["Gastmannschaft 7",4,null,4,null,4,null,null,null,null,null,null,null,null,"Heimmannschaft",130,null,130,null,130]
["Gastmannschaft 7",5,null,5,null,5,null,null,null,null,null,null,null,null,"Heimmannschaft",131,null,131,null,131]
["Gastmannschaft 7",6,null,6,null,6,null,null,null,null,null,null,null,null,"Heimmannschaft",132,null,132,null,132]
["Gastmannschaft 7",7,null,7,null,7,null,null,null,null,null,null,null,null,"Heimmannschaft",133,null,133,null,133]
["Gastmannschaft 7",8,null,8,null,8,null,null,null,null,null,null,null,null,"Heimmannschaft",134,null,134,null,134]
["Gastmannschaft 7",9,null,9,null,9,null,null,null,null,null,null,null,null,"Heimmannschaft",135,null,135,null,135]
["Gastmannschaft 7",10,null,10,null,10,null,null,null,null,null,null,null,null,"Heimmannschaft",136,null,136,null,136]
["Gastmannschaft 7",11,null,11,null,11,null,null,null,null,null,null,null,null,"Heimmannschaft",137,null,137,null,137]
["Gastmannschaft 7",12,null,12,null,12,null,null,null,null,null,null,null,null,"Heimmannschaft",138,null,138,null,138]
["Gastmannschaft 7",13,null,13,null,13,null,null,null,null,null,null,null,null,"Heimmannschaft",139,null,139,null,139]
["Gastmannschaft 7",14,null,14,null,14,null,null,null,null,null,null,null,null,"Heimmannschaft",140,null,140,null,140]
["Gastmannschaft 7",15,null,15,null,15,null,null,null,null,null,null,null,null,"Heimmannschaft",141,null,141,null,141]
["Gastmannschaft 7",16,null,16,null,16,null,null,null,null,null,null,null,null,"Heimmannschaft",142,null,142,null,142]
["Gastmannschaft 7",17,null,17,null,17,null,null,null,null,null,null,null,null,"Heimmannschaft",143,null,143,null,143]
["Gastmannschaft 7",18,null,18,null,18,null,null,null,null,null,null,null,null,"Heimmannschaft",144,null,144,null,144]
["Gastmannschaft 7",19,null,19,null,19,null,null,null,null,null,null,null,null,"Heimmannschaft",145,null,145,null,145]
["Gastmannschaft 7",20,null,20,null,20,null,null,null,null,null,null,null,null,"Heimmannschaft",146,null,146,null,146]
["Gastmannschaft 7",21,null,21,null,21,null,null,null,null,null,null,null,null,"Heimmannschaft",147,null,147,null,147]
["Gastmannschaft 8",1,null,1,null,1,null,null,null,null,null,null,null,null,"Heimmannschaft",148,null,148,null,148]
[{"$f":"$A$150","v":"Gastmannschaft 8"},2,null,2,null,2,null,null,null,null,null,null,null,null,"Heimmannschaft",149,null,149,null,149]
["Gastmannschaft 8",3,null,3,null,3,null,null,null,null,null,null,null,null,"Heimmannschaft",150,null,150,null,150]
["Gastmannschaft 8",4,null,4,null,4,null,null,null,null,null,null,null,null,"Heimmannschaft",151,null,151,null,151]
["Gastmannschaft 8",5,null,5,null,5,null,null,null,null,null,null,null,null,"Heimmannschaft",152,null,152,null,152]
["Gastmannschaft 8",6,null,6,null,6,null,null,null,null,null,null,null,null,"Heimmannschaft",153,null,153,null,153]
["Gastmannschaft 8",7,null,7,null,7,null,null,null,null,null,null,null,null,"Heimmannschaft",154,null,154,null,154]
["Gastmannschaft 8",8,null,8,null,8,null,null,null,null,null,null,null,null,"Heimmannschaft",155,null,155,null,155]
["Gastmannschaft 8",9,null,9,null,9,null,null,null,null,null,null,null,null,"Heimmannschaft",156,null,156,null,156]
["Gastmannschaft 8",10,null,10,null,10,null,null,null,null,null,null,null,null,"Heimmannschaft",157,null,157,null,157]
["Gastmannschaft 8",11,null,11,null,11,null,null,null,null,null,null,null,null,"Heimmannschaft",158,null,158,null,158]
["Gastmannschaft 8",12,null,12,null,12,null,null,null,null,null,null,null,null,"Heimmannschaft",159,null,159,null,159]
["Gastmannschaft 8",13,null,13,null,13,null,null,null,null,null,null,null,null,"Heimmannschaft",160,null,160,null,160]
["Gastmannschaft 8",14,null,14,null,14,null,null,null,null,null,null,null,null,"Heimmannschaft",161,null,161,null,161]
["Gastmannschaft 8",15,null,15,null,15,null,null,null,null,null,null,null,null,"Heimmannschaft",162,null,162,null,162]
["Gastmannschaft 8",16,null,16,null,16,null,null,null,null,null,null,null,null,"Heimmannschaft",163,null,163,null,163]
["Gastmannschaft 8",17,null,17,null,17,null,null,null,null,null,null,null,null,"Heimmannschaft",164,null,164,null,164]
["Gastmannschaft 8",18,null,18,null,18,null,null,null,null,null,null,null,null,"Heimmannschaft",165,null,165,null,165]
["Gastmannschaft 8",19,null,19,null,19,null,null,null,null,null,null,null,null,"Heimmannschaft",166,null,166,null,166]
["Gastmannschaft 8",20,null,20,null,20,null,null,null,null,null,null,null,null,"Heimmannschaft",167,null,167,null,167]
["Gastmannschaft 8",21,null,21,null,21,null,null,null,null,null,null,null,null,"Heimmannschaft",168,null,168,null,168]
["Gastmannschaft 9",1,null,1,null,1,null,null,null,null,null,null,null,null,"Heimmannschaft",169,null,169,null,169]
[{"$f":"$A$171","v":"Gastmannschaft 9"},2,null,2,null,2,null,null,null,null,null,null,null,null,"Heimmannschaft",170,null,170,null,170]
["Gastmannschaft 9",3,null,3,null,3,null,null,null,null,null,null,null,null,"Heimmannschaft",171,null,171,null,171]
["Gastmannschaft 9",4,null,4,null,4,null,null,null,null,null,null,null,null,"Heimmannschaft",172,null,172,null,172]
["Gastmannschaft 9",5,null,5,null,5,null,null,null,null,null,null,null,null,"Heimmannschaft",173,null,173,null,173]
["Gastmannschaft 9",6,null,6,null,6,null,null,null,null,null,null,null,null,"Heimmannschaft",174,null,174,null,174]
["Gastmannschaft 9",7,null,7,null,7,null,null,null,null,null,null,null,null,"Heimmannschaft",175,null,175,null,175]
["Gastmannschaft 9",8,null,8,null,8,null,null,null,null,null,null,null,null,"Heimmannschaft",176,null,176,null,176]
["Gastmannschaft 9",9,null,9,null,9,null,null,null,null,null,null,null,null,"Heimmannschaft",177,null,177,null,177]
["Gastmannschaft 9",10,null,10,null,10,null,null,null,null,null,null,null,null,"Heimmannschaft",178,null,178,null,178]
["Gastmannschaft 9",11,null,11,null,11,null,null,null,null,null,null,null,null,"Heimmannschaft",179,null,179,null,179]
["Gastmannschaft 9",12,null,12,null,12,null,null,null,null,null,null,null,null,"Heimmannschaft",180,null,180,null,180]
["Gastmannschaft 9",13,null,13,null,13,null,null,null,null,null,null,null,null,"Heimmannschaft",181,null,181,null,181]
["Gastmannschaft 9",14,null,14,null,14,null,null,null,null,null,null,null,null,"Heimmannschaft",182,null,182,null,182]
["Gastmannschaft 9",15,null,15,null,15,null,null,null,null,null,null,null,null,"Heimmannschaft",183,null,183,null,183]
["Gastmannschaft 9",16,null,16,null,16,null,null,null,null,null,null,null,null,"Heimmannschaft",184,null,184,null,184]
["Gastmannschaft 9",17,null,17,null,17,null,null,null,null,null,null,null,null,"Heimmannschaft",185,null,185,null,185]
["Gastmannschaft 9",18,null,18,null,18,null,null,null,null,null,null,null,null,"Heimmannschaft",186,null,186,null,186]
["Gastmannschaft 9",19,null,19,null,19,null,null,null,null,null,null,null,null,"Heimmannschaft",187,null,187,null,187]
["Gastmannschaft 9",20,null,20,null,20,null,null,null,null,null,null,null,null,"Heimmannschaft",188,null,188,null,188]
["Gastmannschaft 9",21,null,21,null,21,null,null,null,null,null,null,null,null,"Heimmannschaft",189,null,189,null,189]
["Gastmannschaft 10",1,null,1,null,1,null,null,null,null,null,null,null,null,"Heimmannschaft",190,null,190,null,190]
[{"$f":"$A$192","v":"Gastmannschaft 10"},2,null,2,null,2,null,null,null,null,null,null,null,null,"Heimmannschaft",191,null,191,null,191]
["Gastmannschaft 10",3,null,3,null,3,null,null,null,null,null,null,null,null,"Heimmannschaft",192,null,192,null,192]
["Gastmannschaft 10",4,null,4,null,4,null,null,null,null,null,null,null,null,{"$f":"$O$3","v":"Heimmannschaft"},193,null,193,null,193]
["Gastmannschaft 10",5,null,5,null,5,null,null,null,null,null,null,null,null,"Heimmannschaft",194,null,194,null,194]
["Gastmannschaft 10",6,null,6,null,6,null,null,null,null,null,null,null,null,"Heimmannschaft",195,null,195,null,195]
["Gastmannschaft 10",7,null,7,null,7,null,null,null,null,null,null,null,null,"Heimmannschaft",196,null,196,null,196]
["Gastmannschaft 10",8,null,8,null,8,null,null,null,null,null,null,null,null,"Heimmannschaft",197,null,197,null,197]
["Gastmannschaft 10",9,null,9,null,9,null,null,null,null,null,null,null,null,"Heimmannschaft",198,null,198,null,198]
["Gastmannschaft 10",10,null,10,null,10,null,null,null,null,null,null,null,null,"Heimmannschaft",199,null,199,null,199]
["Gastmannschaft 10",11,null,11,null,11,null,null,null,null,null,null,null,null,"Heimmannschaft",200,null,200,null,200]
["Gastmannschaft 10",12,null,12,null,12,null,null,null,null,null,null,null,null,"Heimmannschaft",201,null,201,null,201]
["Gastmannschaft 10",13,null,13,null,13,null,null,null,null,null,null,null,null,"Heimmannschaft",202,null,202,null,202]
["Gastmannschaft 10",14,null,14,null,14,null,null,null,null,null,null,null,null,"Heimmannschaft",203,null,203,null,203]
["Gastmannschaft 10",15,null,15,null,15,null,null,null,null,null,null,null,null,"Heimmannschaft",204,null,204,null,204]
["Gastmannschaft 10",16,null,16,null,16,null,null,null,null,null,null,null,null,"Heimmannschaft",205,null,205,null,205]
["Gastmannschaft 10",17,null,17,null,17,null,null,null,null,null,null,null,null,"Heimmannschaft",206,null,206,null,206]
["Gastmannschaft 10",18,null,18,null,18,null,null,null,null,null,null,null,null,"Heimmannschaft",207,null,207,null,207]
["Gastmannschaft 10",19,null,19,null,19,null,null,null,null,null,null,null,null,"Heimmannschaft",208,null,208,null,208]
["Gastmannschaft 10",20,null,20,null,20,null,null,null,null,null,null,null,null,"Heimmannschaft",209,null,209,null,209]
["Gastmannschaft 10",21,null,21,null,21,null,null,null,null,null,null,null,null,"Heimmannschaft",210,null,210,null,210]
["Gastmannschaft 11",1,null,1,null,1,null,null,null,null,null,null,null,null,"Heimmannschaft",211,null,211,null,211]
[{"$f":"$A$213","v":"Gastmannschaft 11"},2,null,2,null,2,null,null,null,null,null,null,null,null,"Heimmannschaft",212,null,212,null,212]
["Gastmannschaft 11",3,null,3,null,3,null,null,null,null,null,null,null,null,"Heimmannschaft",213,null,213,null,213]
["Gastmannschaft 11",4,null,4,null,4,null,null,null,null,null,null,null,null,"Heimmannschaft",214,null,214,null,214]
["Gastmannschaft 11",5,null,5,null,5,null,null,null,null,null,null,null,null,"Heimmannschaft",215,null,215,null,215]
["Gastmannschaft 11",6,null,6,null,6,null,null,null,null,null,null,null,null,"Heimmannschaft",216,null,216,null,216]
["Gastmannschaft 11",7,null,7,null,7,null,null,null,null,null,null,null,null,"Heimmannschaft",217,null,217,null,217]
["Gastmannschaft 11",8,null,8,null,8,null,null,null,null,null,null,null,null,"Heimmannschaft",218,null,218,null,218]
["Gastmannschaft 11",9,null,9,null,9,null,null,null,null,null,null,null,null,"Heimmannschaft",219,null,219,null,219]
["Gastmannschaft 11",10,null,10,null,10,null,null,null,null,null,null,null,null,"Heimmannschaft",220,null,220,null,220]
["Gastmannschaft 11",11,null,11,null,11,null,null,null,null,null,null,null,null,"Heimmannschaft",221,null,221,null,221]
["Gastmannschaft 11",12,null,12,null,12,null,null,null,null,null,null,null,null,"Heimmannschaft",222,null,222,null,222]
["Gastmannschaft 11",13,null,13,null,13,null,null,null,null,null,null,null,null,"Heimmannschaft",223,null,223,null,223]
["Gastmannschaft 11",14,null,14,null,14,null,null,null,null,null,null,null,null,"Heimmannschaft",224,null,224,null,224]
["Gastmannschaft 11",15,null,15,null,15,null,null,null,null,null,null,null,null,"Heimmannschaft",225,null,225,null,225]
["Gastmannschaft 11",16,null,16,null,16,null,null,null,null,null,null,null,null,"Heimmannschaft",226,null,226,null,226]
["Gastmannschaft 11",17,null,17,null,17,null,null,null,null,null,null,null,null,"Heimmannschaft",227,null,227,null,227]
["Gastmannschaft 11",18,null,18,null,18,null,null,null,null,null,null,null,null,"Heimmannschaft",228,null,228,null,228]
["Gastmannschaft 11",19,null,19,null,19,null,null,null,null,null,null,null,null,"Heimmannschaft",229,null,229,null,229]
["Gastmannschaft 11",20,null,20,null,20,null,null,null,null,null,null,null,null,"Heimmannschaft",230,null,230,null,230]
["Gastmannschaft 11",21,null,21,null,21,null,null,null,null,null,null,null,null,"Heimmannschaft",231,null,231,null,231]

{"sheet":"Daten","index":3,"n_rows":37,"n_cols":12,"rows_kept":37,"cut":false,"hidden":false,"merged":[[2,1,2,11],[19,1,21,11],[10,4,10,6],[13,4,13,9],[14,4,14,9],[12,4,12,9],[4,4,4,11],[6,4,6,11],[8,4,8,11]]}
[]
[null,"120 Wurf"]
[null,"gelbe Felder sind Eingabefelder für den Spielbericht"]
[]
[null,null,null,"Liga / Klasse:","!!! Liga eintragen !!!"]
[]
[null,null,null,"Bahnanlage:","!!! Bahnanlage eintragen !!!"]
[]
[null,null,null,"Ort:","!!! Ort eintragen !!!"]
[]
[null,null,null,"Spiel-Nummer:",null,null,null,"nur für Bezirke: Mittelbaden und Breisgau-Oberrhein"]
[]
["Spielbericht senden an:",null,null,null,"Name",null,null,null,null,null,"Fax","Mail"]
[null,null,null,null,"Mustermann 1",null,null,null,null,null,"032 xxx xxx xxx","Mustermann1@Mail"]
[null,null,null,null,"Mustermann 2",null,null,null,null,null,"0041 xxx xxx xx","Mustermann2@Mail"]
[]
[]
[]
[]
[null,"Damit das Programm funktioniert muss\nBearbeitung und Makros aktiviert werden!"]
[]
[]
[]
["Aktualisierungen:"]
["Datum","Version","Änderung"]
["2018-08-05","2018_01","Layoutanpassungen, TV-Beamer Formatfehler beseitigt"]
["2016-09-20","2016_01","Fehlerbehebung zum Upload aus Excel 2007 und Excel 2010. Optische Anpassungen."]
["2015-09-11","2015_03","Optische Verbesserungen."]
["2015-09-03","2015_02","Fehler behoben. Spielerliste für Heimmannschaft erweitert"]
["2015-07-29","2015_01","Überarbeitete Version zur Erstellung Upload-Registerblatt. Verbesserte Eingabe."]
["2014-10-05","2014_01","TV: ab Excel 2013 die TV-Beamer Seite unter Ansicht als neues Fenster öffnen und auf den zweiten Bildschirm für TV,"]
[null,null,null,"oder Beamer legen (Daten werden automatisch übernommen)"]
[null,null,"      bis Excel 2010 die TV-Beamer Seite als PDF-Datei drucken und auf den zweiten Bildschirm für TV, oder Beamer legen"]
[null,null,null,"(es muss nach jeder neuen Eingabe ein neues PDF erstellt werden)"]
["2013-09-22","2013_03","Format für Tel-Nr. angepasst"]
["2013-09-19","2013_02","Fehlerbehebung der Satzpunkte (0,5) "]
["2013-09-15","2013_01","Fehlerbehebung der Satzpunkte (bei nicht absolvierter Bahn hat der gegen Spieler den Satzpunkt nicht erhalten)"]

{"sheet":"Etiketten Druck","index":4,"n_rows":15,"n_cols":11,"rows_kept":15,"cut":false,"hidden":false,"merged":[[0,10,0,13]]}
[null,"AVERY Zweckform",null,"L4732REV",null,"System   Grösse",null,"35,6 x 16,9 mm",null,"2000 Etiketten\n25 Blatt","Seitenränder des Druckbereiches:\nOben und Unten = 1.2 mm\nLinks und Rechts = 1.0 mm"]
["Heim 1",{"$f":"Spielberichtsbogen!C15","v":0},null,{"$f":"Spielberichtsbogen!C15","v":0},null,{"$f":"Spielberichtsbogen!C15","v":0},null,{"$f":"Spielberichtsbogen!C15","v":0}]
["Heim 2",{"$f":"Spielberichtsbogen!C22","v":0},null,{"$f":"Spielberichtsbogen!C22","v":0},null,{"$f":"Spielberichtsbogen!C22","v":0},null,{"$f":"Spielberichtsbogen!C22","v":0}]
["Heim 3",{"$f":"Spielberichtsbogen!C29","v":0},null,{"$f":"Spielberichtsbogen!C29","v":0},null,{"$f":"Spielberichtsbogen!C29","v":0},null,{"$f":"Spielberichtsbogen!C29","v":0}]
["Heim 4",{"$f":"Spielberichtsbogen!C36","v":0},null,{"$f":"Spielberichtsbogen!C36","v":0},null,{"$f":"Spielberichtsbogen!C36","v":0},null,{"$f":"Spielberichtsbogen!C36","v":0}]
["Heim 5",{"$f":"Spielberichtsbogen!C43","v":0},null,{"$f":"Spielberichtsbogen!C43","v":0},null,{"$f":"Spielberichtsbogen!C43","v":0},null,{"$f":"Spielberichtsbogen!C43","v":0}]
["Heim 6",{"$f":"Spielberichtsbogen!C50","v":0},null,{"$f":"Spielberichtsbogen!C50","v":0},null,{"$f":"Spielberichtsbogen!C50","v":0},null,{"$f":"Spielberichtsbogen!C50","v":0}]
["Gast 1",{"$f":"Spielberichtsbogen!Q15","v":0},null,{"$f":"Spielberichtsbogen!Q15","v":0},null,{"$f":"Spielberichtsbogen!Q15","v":0},null,{"$f":"Spielberichtsbogen!Q15","v":0}]
["Gast 2",{"$f":"Spielberichtsbogen!Q22","v":0},null,{"$f":"Spielberichtsbogen!Q22","v":0},null,{"$f":"Spielberichtsbogen!Q22","v":0},null,{"$f":"Spielberichtsbogen!Q22","v":0}]
["Gast 3",{"$f":"Spielberichtsbogen!Q29","v":0},null,{"$f":"Spielberichtsbogen!Q29","v":0},null,{"$f":"Spielberichtsbogen!Q29","v":0},null,{"$f":"Spielberichtsbogen!Q29","v":0}]
["Gast 4",{"$f":"Spielberichtsbogen!Q36","v":0},null,{"$f":"Spielberichtsbogen!Q36","v":0},null,{"$f":"Spielberichtsbogen!Q36","v":0},null,{"$f":"Spielberichtsbogen!Q36","v":0}]
["Gast 5",{"$f":"Spielberichtsbogen!Q43","v":0},null,{"$f":"Spielberichtsbogen!Q43","v":0},null,{"$f":"Spielberichtsbogen!Q43","v":0},null,{"$f":"Spielberichtsbogen!Q43","v":0}]
["Gast 6",{"$f":"Spielberichtsbogen!Q50","v":0},null,{"$f":"Spielberichtsbogen!Q50","v":0},null,{"$f":"Spielberichtsbogen!Q50","v":0},null,{"$f":"Spielberichtsbogen!Q50","v":0}]
[]
[null," "]

{"sheet":"TV-Beamer","index":5,"n_rows":19,"n_cols":29,"rows_kept":19,"cut":false,"hidden":false,"merged":[[15,1,15,3],[15,22,15,27],[16,1,16,3],[16,22,16,27],[18,2,18,3],[18,24,18,27],[13,22,13,27],[14,1,14,5],[14,7,14,9],[14,11,14,12],[14,13,14,14],[14,16,14,18],[14,20,14,27],[13,1,13,3],[13,8,13,9],[13,11,13,12],[13,13,13,14],[13,16,13,17],[11,22,11,27],[12,1,12,3],[12,8,12,9],[12,11,12,12],[12,13,12,14],[12,16,12,17],[12,22,12,27],[11,1,11,3],[11,8,11,9],[11,11,11,12],[11,13,11,14],[11,16,11,17],[9,22,9,27],[10,1,10,3],[10,8,10,9],[10,11,10,12],[10,13,10,14],[10,16,10,17],[10,22,10,27],[9,1,9,3],[9,8,9,9],[9,11,9,12],[9,13,9,14],[9,16,9,17],[7,22,7,27],[6,0,6,9],[6,16,6,28],[6,10,6,12],[6,13,6,15],[7,16,7,17],[4,14,4,16],[7,1,7,3],[7,8,7,9],[7,11,7,12],[7,13,7,14],[8,22,8,27],[3,2,3,8],[3,9,3,13],[3,14,3,16],[3,17,3,18],[4,17,4,18],[4,2,4,8],[4,9,4,13],[4,25,4,27],[4,19,4,21],[4,22,4,24],[8,1,8,3],[8,8,8,9],[8,11,8,12],[8,13,8,14],[8,16,8,17],[3,22,3,24],[3,19,3,21],[3,25,3,27],[0,1,0,27],[1,1,1,10],[1,11,1,14],[1,15,1,27],[2,2,2,8],[2,25,2,27],[2,14,2,16],[2,17,2,18],[2,9,2,13],[2,19,2,21],[2,22,2,24]]}
[null,{"$f":"Spielberichtsbogen!Q5","v":"!!! Liga eintragen !!!"}]
[null,{"$f":"Spielberichtsbogen!E12","v":"Heimmannschaft"},null,null,null,null,null,null,null,null,null,"gegen",null,null,null,{"$f":"Spielberichtsbogen!S12","v":"Gastmannschaft 1"}]
[null,null,"Mannschaft",null,null,null,null,null,null,"Summe",null,null,null,null,"Volle",null,null,"Abr.",null,"Fehlw.",null,null,"Diff.",null,null,"MP"]
[null,"Heim",{"$f":"B2","v":"Heimmannschaft"},null,null,null,null,null,null,{"$f":"H15","v":0},null,null,null,null,{"$f":"Einzelergebnisse!C9+Einzelergebnisse!C17+Einzelergebnisse!C25+Einzelergebnisse!C33+Einzelergebnisse!C41+Einzelergebnisse!C49","v":0},null,null,{"$f":"Einzelergebnisse!D9+Einzelergebnisse!D17+Einzelergebnisse!D25+Einzelergebnisse!D33+Einzelergebnisse!D41+Einzelergebnisse!D49","v":0},null,{"$f":"Einzelergebnisse!E9+Einzelergebnisse!E17+Einzelergebnisse!E25+Einzelergebnisse!E33+Einzelergebnisse!E41+Einzelergebnisse!E49","v":0},null,null,{"$f":"J4-J5","v":0},null,null,{"$f":"SUM(L9:M15)","v":0}]
[null,"Gast",{"$f":"P2","v":"Gastmannschaft 1"},null,null,null,null,null,null,{"$f":"Q15","v":0},null,null,null,null,{"$f":"Einzelergebnisse!J9+Einzelergebnisse!J17+Einzelergebnisse!J25+Einzelergebnisse!J33+Einzelergebnisse!J41+Einzelergebnisse!J49","v":0},null,null,{"$f":"Einzelergebnisse!K9+Einzelergebnisse!K17+Einzelergebnisse!K25+Einzelergebnisse!K33+Einzelergebnisse!K41+Einzelergebnisse!K49","v":0},null,{"$f":"Einzelergebnisse!L9+Einzelergebnisse!L17+Einzelergebnisse!L25+Einzelergebnisse!L33+Einzelergebnisse!L41+Einzelergebnisse!L49","v":0},null,null,null,null,null,{"$f":"SUM(N9:O15)","v":0}]
[]
[{"$f":"B2","v":"Heimmannschaft"},null,null,null,null,null,null,null,null,null,"Heim ",null,null," Gast",null,null,{"$f":"C5","v":"Gastmannschaft 1"}]
[null,null,null,null,1,2,3,4,"Kegel",null,"SP","MP",null,"MP",null,"SP","Kegel",null,4,3,2,1]
[1,{"$f":"Einzelergebnisse!A5","v":0},null,null,{"$f":"Einzelergebnisse!F5","v":0},{"$f":"Einzelergebnisse!F6","v":0},{"$f":"Einzelergebnisse!F7","v":0},{"$f":"Einzelergebnisse!F8","v":0},{"$f":"SUM(E9:H9)","v":0},null,{"$f":"Spielberichtsbogen!K20","v":""},{"$f":"Spielberichtsbogen!L15","v":""},null,{"$f":"Spielberichtsbogen!Z15","v":""},null,{"$f":"Spielberichtsbogen!Y20","v":""},{"$f":"S9+T9+U9+V9","v":0},null,{"$f":"Einzelergebnisse!M8","v":0},{"$f":"Einzelergebnisse!M7","v":0},{"$f":"Einzelergebnisse!M6","v":0},{"$f":"Einzelergebnisse!M5","v":0},{"$f":"Einzelergebnisse!H5","v":0},null,null,null,null,null,1]
[2,{"$f":"Einzelergebnisse!A13","v":0},null,null,{"$f":"Einzelergebnisse!F13","v":0},{"$f":"Einzelergebnisse!F14","v":0},{"$f":"Einzelergebnisse!F15","v":0},{"$f":"Einzelergebnisse!F16","v":0},0,null,{"$f":"Spielberichtsbogen!K27","v":""},{"$f":"Spielberichtsbogen!L22","v":""},null,{"$f":"Spielberichtsbogen!Z22","v":""},null,{"$f":"Spielberichtsbogen!Y27","v":""},0,null,{"$f":"Einzelergebnisse!M16","v":0},{"$f":"Einzelergebnisse!M15","v":0},{"$f":"Einzelergebnisse!M14","v":0},{"$f":"Einzelergebnisse!M13","v":0},{"$f":"Einzelergebnisse!H13","v":0},null,null,null,null,null,2]
[3,{"$f":"Einzelergebnisse!A21","v":0},null,null,{"$f":"Einzelergebnisse!F21","v":0},{"$f":"Einzelergebnisse!F22","v":0},{"$f":"Einzelergebnisse!F23","v":0},{"$f":"Einzelergebnisse!F24","v":0},0,null,{"$f":"Spielberichtsbogen!K34","v":""},{"$f":"Spielberichtsbogen!L29","v":""},null,{"$f":"Spielberichtsbogen!Z29","v":""},null,{"$f":"Spielberichtsbogen!Y34","v":""},0,null,{"$f":"Einzelergebnisse!M24","v":0},{"$f":"Einzelergebnisse!M23","v":0},{"$f":"Einzelergebnisse!M22","v":0},{"$f":"Einzelergebnisse!M21","v":0},{"$f":"Einzelergebnisse!H21","v":0},null,null,null,null,null,3]
[4,{"$f":"Einzelergebnisse!A29","v":0},null,null,{"$f":"Einzelergebnisse!F29","v":0},{"$f":"Einzelergebnisse!F30","v":0},{"$f":"Einzelergebnisse!F31","v":0},{"$f":"Einzelergebnisse!F32","v":0},0,null,{"$f":"Spielberichtsbogen!K41","v":""},{"$f":"Spielberichtsbogen!L36","v":""},null,{"$f":"Spielberichtsbogen!Z36","v":""},null,{"$f":"Spielberichtsbogen!Y41","v":""},0,null,{"$f":"Einzelergebnisse!M32","v":0},{"$f":"Einzelergebnisse!M31","v":0},{"$f":"Einzelergebnisse!M30","v":0},{"$f":"Einzelergebnisse!M29","v":0},{"$f":"Einzelergebnisse!H29","v":0},null,null,null,null,null,4]
[5,{"$f":"Einzelergebnisse!A37","v":0},null,null,{"$f":"Einzelergebnisse!F37","v":0},{"$f":"Einzelergebnisse!F38","v":0},{"$f":"Einzelergebnisse!F39","v":0},{"$f":"Einzelergebnisse!F40","v":0},0,null,{"$f":"Spielberichtsbogen!K48","v":""},{"$f":"Spielberichtsbogen!L43","v":""},null,{"$f":"Spielberichtsbogen!Z43","v":""},null,{"$f":"Spielberichtsbogen!Y48","v":""},0,null,{"$f":"Einzelergebnisse!M40","v":0},{"$f":"Einzelergebnisse!M39","v":0},{"$f":"Einzelergebnisse!M38","v":0},{"$f":"Einzelergebnisse!M37","v":0},{"$f":"Einzelergebnisse!H37","v":0},null,null,null,null,null,5]
[6,{"$f":"Einzelergebnisse!A45","v":0},null,null,{"$f":"Einzelergebnisse!F45","v":0},{"$f":"Einzelergebnisse!F46","v":0},{"$f":"Einzelergebnisse!F47","v":0},{"$f":"Einzelergebnisse!F48","v":0},0,null,{"$f":"Spielberichtsbogen!K55","v":""},{"$f":"Spielberichtsbogen!L50","v":""},null,{"$f":"Spielberichtsbogen!Z50","v":""},null,{"$f":"Spielberichtsbogen!Y55","v":""},0,null,{"$f":"Einzelergebnisse!M48","v":0},{"$f":"Einzelergebnisse!M47","v":0},{"$f":"Einzelergebnisse!M46","v":0},{"$f":"Einzelergebnisse!M45","v":0},{"$f":"Einzelergebnisse!H45","v":0},null,null,null,null,null,6]
[null,"Ersatzspieler",null,null,null,null,null,{"$f":"SUM(I9:J14)","v":0},null,null,null,{"$f":"Spielberichtsbogen!K58","v":""},null,{"$f":"Spielberichtsbogen!Y58","v":""},null,null,{"$f":"SUM(Q9:R14)","v":0},null,null,null,"Ersatzspieler"]
[7,{"$f":"IF(Spielberichtsbogen!E65=0,\"\",Spielberichtsbogen!E65)","v":""},null,null,null,null,null,null,null,null,null,null,null,null,null,null,null,null,null,null,null,null,{"$f":"IF(Spielberichtsbogen!S65=0,\"\",Spielberichtsbogen!S65)","v":""},null,null,null,null,null,7]
[8,{"$f":"IF(Spielberichtsbogen!J65=0,\"\",Spielberichtsbogen!J65)","v":""},null,null,null,null,null,null,null,null,null,null,null,null,null,null,null,null,null,null,null,null,{"$f":"IF(Spielberichtsbogen!W65=0,\"\",Spielberichtsbogen!W65)","v":""},null,null,null,null,null,8]
[]
[null,"MF :",{"$f":"Spielberichtsbogen!B56","v":0},null,null,null,null,null,null,null,null,null,null,null,null,null,null,null,null,null,null,null,"MF :",null,{"$f":"Spielberichtsbogen!P56","v":0}]

{"sheet":"Upload","index":6,"n_rows":68,"n_cols":27,"rows_kept":68,"cut":false,"hidden":false,"merged":[[65,2,65,26],[66,1,66,26],[67,3,67,6],[67,13,67,17],[67,20,67,26],[68,3,68,6],[68,7,68,11],[68,12,68,16],[68,20,68,26],[54,8,54,9],[54,22,54,23],[55,22,55,23],[57,5,57,9],[57,19,57,22],[64,4,64,6],[64,9,64,13],[64,18,64,20],[64,22,64,26],[49,25,53,25],[50,8,50,9],[50,22,50,23],[51,2,51,4],[51,8,51,9],[47,8,47,9],[47,22,47,23],[48,2,48,4],[48,8,48,9],[48,16,48,18],[48,22,48,23],[51,16,51,18],[51,22,51,23],[52,2,53,4],[52,8,52,9],[52,16,53,18],[52,22,52,23],[53,8,53,9],[53,22,53,23],[49,2,50,4],[49,8,49,9],[49,11,53,11],[49,16,50,18],[49,22,49,23],[42,25,46,25],[43,8,43,9],[43,22,43,23],[44,2,44,4],[44,8,44,9],[40,8,40,9],[40,22,40,23],[41,2,41,4],[41,8,41,9],[41,16,41,18],[41,22,41,23],[44,16,44,18],[44,22,44,23],[45,2,46,4],[45,8,45,9],[45,16,46,18],[45,22,45,23],[46,8,46,9],[46,22,46,23],[42,2,43,4],[42,8,42,9],[42,11,46,11],[42,16,43,18],[42,22,42,23],[35,25,39,25],[36,8,36,9],[36,22,36,23],[37,2,37,4],[37,8,37,9],[33,8,33,9],[33,22,33,23],[34,2,34,4],[34,8,34,9],[34,16,34,18],[34,22,34,23],[37,16,37,18],[37,22,37,23],[38,2,39,4],[38,8,38,9],[38,16,39,18],[38,22,38,23],[39,8,39,9],[39,22,39,23],[35,2,36,4],[35,8,35,9],[35,11,39,11],[35,16,36,18],[35,22,35,23],[28,25,32,25],[29,8,29,9],[29,22,29,23],[30,2,30,4],[30,8,30,9],[26,8,26,9],[26,22,26,23],[27,2,27,4],[27,8,27,9],[27,16,27,18],[27,22,27,23],[30,16,30,18],[30,22,30,23],[31,2,32,4],[31,8,31,9],[31,16,32,18],[31,22,31,23],[32,8,32,9],[32,22,32,23],[28,2,29,4],[28,8,28,9],[28,11,32,11],[28,16,29,18],[28,22,28,23],[21,25,25,25],[22,8,22,9],[22,22,22,23],[23,2,23,4],[23,8,23,9],[19,8,19,9],[19,22,19,23],[20,2,20,4],[20,8,20,9],[20,16,20,18],[20,22,20,23],[23,16,23,18],[23,22,23,23],[24,2,25,4],[24,8,24,9],[24,16,25,18],[24,22,24,23],[25,8,25,9],[25,22,25,23],[21,2,22,4],[21,8,21,9],[21,11,25,11],[21,16,22,18],[21,22,21,23],[9,14,9,15],[9,16,9,18],[9,22,9,25],[17,2,18,4],[17,8,17,9],[17,16,18,18],[17,22,17,23],[18,8,18,9],[18,22,18,23],[14,2,15,4],[14,8,14,9],[14,11,18,11],[14,16,15,18],[14,22,14,23],[16,2,16,4],[16,8,16,9],[1,15,1,18],[1,19,1,26],[2,15,2,18],[2,19,2,26],[14,25,18,25],[15,8,15,9],[15,22,15,23],[3,3,4,10],[3,15,3,18],[3,19,3,26],[4,16,5,25],[6,16,6,18],[6,19,6,20],[6,21,6,22],[6,23,6,24],[6,25,6,26],[11,4,11,11],[11,18,11,25],[13,2,13,4],[13,8,13,9],[13,16,13,18],[13,22,13,23],[16,16,16,18],[16,22,16,23]]}
[]
[]
[]
[null,null,null,"Spielbericht"]
[null,null,null,null,null,null,null,null,null,null,null,null,null,null,null,null,"!!! Liga eintragen !!!"]
[null,null,null,null,null,"Senioren",null,null,null,null,"",null,null,null,"Liga/Klasse"]
[null,"Clubspiel",null,"",null,"Frauen",null,null,null,null,"",null,null,null,"Datum",null,"2016-09-20",null,null,"Spieltag",null,"1",null,"",null,""]
[null,"Pokalspiel",null,"",null,"Männer",null,null,null,null,"",null,null,null,"Bahnanlage",null,"!!! Bahnanlage eintragen !!!"]
[null,"Länderspiel",null,"",null,"U 23",null,null,null,null,"",null,null,null,"Ort",null,"!!! Ort eintragen !!!"]
[null,null,null,null,null,"U 18",null,null,null,null,"",null,null,null,"Spielbeginn",null,null,null,null,null,null,"Spielende"]
[]
[null,"Heimmannschaft",null,null,"Heimmannschaft",null,null,null,null,null,null,null,null,null,null,"Gastmannschaft",null,null,"Gastmannschaft 1"]
[]
[null,"Pa.-Nr./Mo.Ja","Name, Vorname",null,null,"Volle","Abr","Fe","Ges",null,"SaP","MaP",null,null,null,"Pa.-Nr./Mo.Ja","Name, Vorname",null,null,"Volle","Abr","Fe","Ges",null,"SaP","MaP"]
[null,0,0,null,null,"","","","",null,"","",null,null,null,0,0,null,null,"","","","",null,"",""]
[null,"00:00:00",null,null,null,"","","","",null,"",null,null,null,null,"00:00:00",null,null,null,"","","","",null,""]
[null,"Pa.-Nr./Mo.Ja","Awsp. Name, Vorname",null,null,null,null,null,null,null,null,null,null,null,null,"Pa.-Nr./Mo.Ja","Awsp. Name, Vorname"]
[null,0,0,null,null,"","","","",null,"",null,null,null,null,0,0,null,null,"","","","",null,""]
[null,"00:00:00",null,null,null,"","","","",null,"",null,null,null,null,"00:00:00",null,null,null,"","","","",null,""]
[null,null,null,null,null,"","","","",null,"",null,null,null,null,null,null,null,null,"","","","",null,""]
[null,"Pa.-Nr./Mo.Ja","Name, Vorname",null,null,"Volle","Abr","Fe","Ges",null,"SaP","MaP",null,null,null,"Pa.-Nr./Mo.Ja","Name, Vorname",null,null,"Volle","Abr","Fe","Ges",null,"SaP","MaP"]
[null,0,0,null,null,"","","","",null,"","",null,null,null,0,0,null,null,"","","","",null,"",""]
[null,"00:00:00",null,null,null,"","","","",null,"",null,null,null,null,"00:00:00",null,null,null,"","","","",null,""]
[null,"Pa.-Nr./Mo.Ja","Awsp. Name, Vorname",null,null,null,null,null,null,null,null,null,null,null,null,"Pa.-Nr./Mo.Ja","Awsp. Name, Vorname"]
[null,0,0,null,null,"","","","",null,"",null,null,null,null,0,0,null,null,"","","","",null,""]
[null,"00:00:00",null,null,null,"","","","",null,"",null,null,null,null,"00:00:00",null,null,null,"","","","",null,""]
[null,null,null,null,null,"","","","",null,"",null,null,null,null,null,null,null,null,"","","","",null,""]
[null,"Pa.-Nr./Mo.Ja","Name, Vorname",null,null,"Volle","Abr","Fe","Ges",null,"SaP","MaP",null,null,null,"Pa.-Nr./Mo.Ja","Name, Vorname",null,null,"Volle","Abr","Fe","Ges",null,"SaP","MaP"]
[null,0,0,null,null,"","","","",null,"","",null,null,null,0,0,null,null,"","","","",null,"",""]
[null,"00:00:00",null,null,null,"","","","",null,"",null,null,null,null,"00:00:00",null,null,null,"","","","",null,""]
[null,"Pa.-Nr./Mo.Ja","Awsp. Name, Vorname",null,null,null,null,null,null,null,null,null,null,null,null,"Pa.-Nr./Mo.Ja","Awsp. Name, Vorname"]
[null,0,0,null,null,"","","","",null,"",null,null,null,null,0,0,null,null,"","","","",null,""]
[null,"00:00:00",null,null,null,"","","","",null,"",null,null,null,null,"00:00:00",null,null,null,"","","","",null,""]
[null,null,null,null,null,"","","","",null,"",null,null,null,null,null,null,null,null,"","","","",null,""]
[null,"Pa.-Nr./Mo.Ja","Name, Vorname",null,null,"Volle","Abr","Fe","Ges",null,"SaP","MaP",null,null,null,"Pa.-Nr./Mo.Ja","Name, Vorname",null,null,"Volle","Abr","Fe","Ges",null,"SaP","MaP"]
[null,0,0,null,null,"","","","",null,"","",null,null,null,0,0,null,null,"","","","",null,"",""]
[null,"00:00:00",null,null,null,"","","","",null,"",null,null,null,null,"00:00:00",null,null,null,"","","","",null,""]
[null,"Pa.-Nr./Mo.Ja","Awsp. Name, Vorname",null,null,null,null,null,null,null,null,null,null,null,null,"Pa.-Nr./Mo.Ja","Awsp. Name, Vorname"]
[null,0,0,null,null,"","","","",null,"",null,null,null,null,0,0,null,null,"","","","",null,""]
[null,"00:00:00",null,null,null,"","","","",null,"",null,null,null,null,"00:00:00",null,null,null,"","","","",null,""]
[null,null,null,null,null,"","","","",null,"",null,null,null,null,null,null,null,null,"","","","",null,""]
[null,"Pa.-Nr./Mo.Ja","Name, Vorname",null,null,"Volle","Abr","Fe","Ges",null,"SaP","MaP",null,null,null,"Pa.-Nr./Mo.Ja","Name, Vorname",null,null,"Volle","Abr","Fe","Ges",null,"SaP","MaP"]
[null,0,0,null,null,"","","","",null,"","",null,null,null,0,0,null,null,"","","","",null,"",""]
[null,"00:00:00",null,null,null,"","","","",null,"",null,null,null,null,"00:00:00",null,null,null,"","","","",null,""]
[null,"Pa.-Nr./Mo.Ja","Awsp. Name, Vorname",null,null,null,null,null,null,null,null,null,null,null,null,"Pa.-Nr./Mo.Ja","Awsp. Name, Vorname"]
[null,0,0,null,null,"","","","",null,"",null,null,null,null,0,0,null,null,"","","","",null,""]
[null,"00:00:00",null,null,null,"","","","",null,"",null,null,null,null,"00:00:00",null,null,null,"","","","",null,""]
[null,null,null,null,null,"","","","",null,"",null,null,null,null,null,null,null,null,"","","","",null,""]
[null,"Pa.-Nr./Mo.Ja","Name, Vorname",null,null,"Volle","Abr","Fe","Ges",null,"SaP","MaP",null,null,null,"Pa.-Nr./Mo.Ja","Name, Vorname",null,null,"Volle","Abr","Fe","Ges",null,"SaP","MaP"]
[null,0,0,null,null,"","","","",null,"","",null,null,null,0,0,null,null,"","","","",null,"",""]
[null,"00:00:00",null,null,null,"","","","",null,"",null,null,null,null,"00:00:00",null,null,null,"","","","",null,""]
[null,"Pa.-Nr./Mo.Ja","Awsp. Name, Vorname",null,null,null,null,null,null,null,null,null,null,null,null,"Pa.-Nr./Mo.Ja","Awsp. Name, Vorname"]
[null,0,0,null,null,"","","","",null,"",null,null,null,null,0,0,null,null,"","","","",null,""]
[null,"00:00:00",null,null,null,"","","","",null,"",null,null,null,null,"00:00:00",null,null,null,"","","","",null,""]
[null,"Mannschaftsführer",null,null,null,"","","","",null,"",null,null,null,null,"Mannschaftsführer",null,null,null,"","","","",null,""]
[null,0,null,null,null,null,null,null,null,"SaP","","","MaP",null,null,0,null,null,null,null,null,null,"SaP",null,"","","MaP"]
[null,null,null,null,null,null,null,null,null,null,null,null,null,"Endstand"]
[null,null,null,"Gesamt Kegel","","Kegel Punkte",null,null,null,null,"",null,"",":","",null,null,"Gesamt Kegel","","Kegel Punkte",null,null,null,null,""]
[null,null,null,null,null,null,null,null,null,null,null,"Tabellenpunkte","",":",""]
[]
[null,null,"   1)",null,null,null,null,null,"Bahn/Kugelmaterial in Ordnung  ","x","ja","","nein",null,null,null,null,null,"4)",null,null,"Verletzung ","","ja",null,"x","nein"]
[null,null,"   2)",null,null,null,null,null,"Pässe, Werbegenehmigung i.O. ","x","ja","","nein",null,null,null,null,null,"5)",null,null,"Verwarnung ","","ja",null,"x","nein"]
[null,null,"   3)",null,null,null,null,null,"Protest ","","ja","x","nein",null,null,null,null,null,"6)",null,null,"Sonstiges ","","ja",null,"x","nein"]
[null,null,null,null,null,null,null,null,"Schiedsrichter OK ","","ja","","nein",null,null,null,"Anlagen","",null,null,null,"Schiedsrichter OK ","","ja",null,"","nein"]
[null,null,"Ersatzspieler Heim",1,"",null,null,2,null,"",null,null,null,null,null,null,"Ersatzspieler Gast",1,"",null,null,2,""]
[null,"Bemerkung"]
[]
[null,null,"Heimmannschaft",null,null,null,null,null,null,null,null,null,"Schiedsrichter / Aufsicht",null,null,null,null,null,null,"Gastmannschaft"]

{"sheet":"übertrag","index":7,"n_rows":117,"n_cols":31,"rows_kept":117,"cut":false,"hidden":true,"merged":[[0,16,0,17]]}
[null,null,null,null,null,null,null,null,null,null,"Spieler 1 - 6","Spieler 7 - 12","geb.jahr 1 - 6","geb.jahr 7 - 12 - 6","paß.Nr 1 - 6","paß.Nr 7 - 12","Eingane der Kreuze",null,null,null,null,"Gastmannschaft",null,"Heim",null,null,null,null,null,null,"Spieltag"]
[13,9,9,13,null,4,null,1,1,null,{"$f":"IF(übertrag!$H$2=1,VLOOKUP(übertrag!I2,einsü,2,),IF($H$2=2,VLOOKUP(übertrag!I2,zweiü,2,),IF($H$2=3,VLOOKUP(übertrag!I2,dreiü,2,),IF($H$2=4,VLOOKUP(übertrag!I2,vierü,2,),IF($H$2=5,VLOOKUP(übertrag!I2,fünfü,2,),IF($H$2=6,VLOOKUP(übertrag!I2,sechsü,2,),\"\"))))))","v":0},{"$f":"IF(übertrag!$H$2=7,VLOOKUP(übertrag!I2,siebenü,2,),IF($H$2=8,VLOOKUP(übertrag!I2,achtü,2,),IF($H$2=9,VLOOKUP(übertrag!I2,neunü,2,),IF($H$2=10,VLOOKUP(übertrag!I2,zehnü,2,),IF($H$2=11,VLOOKUP(übertrag!I2,elfü,2,),IF($H$2=12,VLOOKUP(übertrag!I2,Heimü,2,),\"\"))))))","v":""},{"$f":"IF(übertrag!$H$2=1,VLOOKUP(übertrag!I2,_jhg1,2,),IF($H$2=2,VLOOKUP(übertrag!I2,_jhg2,2,),IF($H$2=3,VLOOKUP(übertrag!I2,_jhg3,2,),IF($H$2=4,VLOOKUP(übertrag!I2,_jhg4,2,),IF($H$2=5,VLOOKUP(übertrag!I2,_jhg5,2,),IF($H$2=6,VLOOKUP(übertrag!I2,_jhg6,2,),\"\"))))))","v":0},{"$f":"IF(übertrag!$H$2=7,VLOOKUP(übertrag!I2,_jhg7,2,),IF($H$2=8,VLOOKUP(übertrag!I2,_jhg8,2,),IF($H$2=9,VLOOKUP(übertrag!I2,_jhg9,2,),IF($H$2=10,VLOOKUP(übertrag!I2,_jhg10,2,),IF($H$2=11,VLOOKUP(übertrag!I2,_jhg11,2,),IF($H$2=12,VLOOKUP(übertrag!I2,jhgheim,2,),\"\"))))))","v":""},{"$f":"IF(übertrag!$H$2=1,VLOOKUP(übertrag!I2,paß1,2,),IF($H$2=2,VLOOKUP(übertrag!I2,paß2,2,),IF($H$2=3,VLOOKUP(übertrag!I2,paß3,2,),IF($H$2=4,VLOOKUP(übertrag!I2,paß4,2,),IF($H$2=5,VLOOKUP(übertrag!I2,paß5,2,),IF($H$2=6,VLOOKUP(übertrag!I2,paß6,2,),\"\"))))))","v":0},{"$f":"IF(übertrag!$H$2=7,VLOOKUP(übertrag!I2,paß7,2,),IF($H$2=8,VLOOKUP(übertrag!I2,paß8,2,),IF($H$2=9,VLOOKUP(übertrag!I2,paß9,2,),IF($H$2=10,VLOOKUP(übertrag!I2,paß10,2,),IF($H$2=11,VLOOKUP(übertrag!I2,paß11,2,),IF($H$2=12,VLOOKUP(übertrag!I2,paßheim,2,),\"\"))))))","v":""},false,false,null,null,1,{"$f":"'MANNSCHAFTEN+SPIELER'!A3","v":"Gastmannschaft 1"},null,null,null,{"$f":"IF(I16,VLOOKUP(übertrag!I16,Heimü,2,),\"\")","v":0},null,null,null,null,1]
[13,1,null,13,null,null,null,null,1,null,{"$f":"IF(übertrag!$H$2=1,VLOOKUP(übertrag!I3,einsü,2,),IF($H$2=2,VLOOKUP(übertrag!I3,zweiü,2,),IF($H$2=3,VLOOKUP(übertrag!I3,dreiü,2,),IF($H$2=4,VLOOKUP(übertrag!I3,vierü,2,),IF($H$2=5,VLOOKUP(übertrag!I3,fünfü,2,),IF($H$2=6,VLOOKUP(übertrag!I3,sechsü,2,),\"\"))))))","v":0},{"$f":"IF(übertrag!$H$2=7,VLOOKUP(übertrag!I3,siebenü,2,),IF($H$2=8,VLOOKUP(übertrag!I3,achtü,2,),IF($H$2=9,VLOOKUP(übertrag!I3,neunü,2,),IF($H$2=10,VLOOKUP(übertrag!I3,zehnü,2,),IF($H$2=11,VLOOKUP(übertrag!I3,elfü,2,),IF($H$2=12,VLOOKUP(übertrag!I3,Heimü,2,),\"\"))))))","v":""},{"$f":"IF(übertrag!$H$2=1,VLOOKUP(übertrag!I3,_jhg1,2,),IF($H$2=2,VLOOKUP(übertrag!I3,_jhg2,2,),IF($H$2=3,VLOOKUP(übertrag!I3,_jhg3,2,),IF($H$2=4,VLOOKUP(übertrag!I3,_jhg4,2,),IF($H$2=5,VLOOKUP(übertrag!I3,_jhg5,2,),IF($H$2=6,VLOOKUP(übertrag!I3,_jhg6,2,),\"\"))))))","v":0},{"$f":"IF(übertrag!$H$2=7,VLOOKUP(übertrag!I3,_jhg7,2,),IF($H$2=8,VLOOKUP(übertrag!I3,_jhg8,2,),IF($H$2=9,VLOOKUP(übertrag!I3,_jhg9,2,),IF($H$2=10,VLOOKUP(übertrag!I3,_jhg10,2,),IF($H$2=11,VLOOKUP(übertrag!I3,_jhg11,2,),IF($H$2=12,VLOOKUP(übertrag!I3,jhgheim,2,),\"\"))))))","v":""},{"$f":"IF(übertrag!$H$2=1,VLOOKUP(übertrag!I3,paß1,2,),IF($H$2=2,VLOOKUP(übertrag!I3,paß2,2,),IF($H$2=3,VLOOKUP(übertrag!I3,paß3,2,),IF($H$2=4,VLOOKUP(übertrag!I3,paß4,2,),IF($H$2=5,VLOOKUP(übertrag!I3,paß5,2,),IF($H$2=6,VLOOKUP(übertrag!I3,paß6,2,),\"\"))))))","v":0},{"$f":"IF(übertrag!$H$2=7,VLOOKUP(übertrag!I3,paß7,2,),IF($H$2=8,VLOOKUP(übertrag!I3,paß8,2,),IF($H$2=9,VLOOKUP(übertrag!I3,paß9,2,),IF($H$2=10,VLOOKUP(übertrag!I3,paß10,2,),IF($H$2=11,VLOOKUP(übertrag!I3,paß11,2,),IF($H$2=12,VLOOKUP(übertrag!I3,paßheim,2,),\"\"))))))","v":""},false,false,null,null,2,{"$f":"'MANNSCHAFTEN+SPIELER'!A24","v":"Gastmannschaft 2"},null,null,null,{"$f":"IF(I17,VLOOKUP(übertrag!I17,Heimü,2,),\"\")","v":0},null,null,null,null,2]
[13,9,9,13,null,null,null,null,1,null,{"$f":"IF(übertrag!$H$2=1,VLOOKUP(übertrag!I4,einsü,2,),IF($H$2=2,VLOOKUP(übertrag!I4,zweiü,2,),IF($H$2=3,VLOOKUP(übertrag!I4,dreiü,2,),IF($H$2=4,VLOOKUP(übertrag!I4,vierü,2,),IF($H$2=5,VLOOKUP(übertrag!I4,fünfü,2,),IF($H$2=6,VLOOKUP(übertrag!I4,sechsü,2,),\"\"))))))","v":0},{"$f":"IF(übertrag!$H$2=7,VLOOKUP(übertrag!I4,siebenü,2,),IF($H$2=8,VLOOKUP(übertrag!I4,achtü,2,),IF($H$2=9,VLOOKUP(übertrag!I4,neunü,2,),IF($H$2=10,VLOOKUP(übertrag!I4,zehnü,2,),IF($H$2=11,VLOOKUP(übertrag!I4,elfü,2,),IF($H$2=12,VLOOKUP(übertrag!I4,Heimü,2,),\"\"))))))","v":""},{"$f":"IF(übertrag!$H$2=1,VLOOKUP(übertrag!I4,_jhg1,2,),IF($H$2=2,VLOOKUP(übertrag!I4,_jhg2,2,),IF($H$2=3,VLOOKUP(übertrag!I4,_jhg3,2,),IF($H$2=4,VLOOKUP(übertrag!I4,_jhg4,2,),IF($H$2=5,VLOOKUP(übertrag!I4,_jhg5,2,),IF($H$2=6,VLOOKUP(übertrag!I4,_jhg6,2,),\"\"))))))","v":0},{"$f":"IF(übertrag!$H$2=7,VLOOKUP(übertrag!I4,_jhg7,2,),IF($H$2=8,VLOOKUP(übertrag!I4,_jhg8,2,),IF($H$2=9,VLOOKUP(übertrag!I4,_jhg9,2,),IF($H$2=10,VLOOKUP(übertrag!I4,_jhg10,2,),IF($H$2=11,VLOOKUP(übertrag!I4,_jhg11,2,),IF($H$2=12,VLOOKUP(übertrag!I4,jhgheim,2,),\"\"))))))","v":""},{"$f":"IF(übertrag!$H$2=1,VLOOKUP(übertrag!I4,paß1,2,),IF($H$2=2,VLOOKUP(übertrag!I4,paß2,2,),IF($H$2=3,VLOOKUP(übertrag!I4,paß3,2,),IF($H$2=4,VLOOKUP(übertrag!I4,paß4,2,),IF($H$2=5,VLOOKUP(übertrag!I4,paß5,2,),IF($H$2=6,VLOOKUP(übertrag!I4,paß6,2,),\"\"))))))","v":0},{"$f":"IF(übertrag!$H$2=7,VLOOKUP(übertrag!I4,paß7,2,),IF($H$2=8,VLOOKUP(übertrag!I4,paß8,2,),IF($H$2=9,VLOOKUP(übertrag!I4,paß9,2,),IF($H$2=10,VLOOKUP(übertrag!I4,paß10,2,),IF($H$2=11,VLOOKUP(übertrag!I4,paß11,2,),IF($H$2=12,VLOOKUP(übertrag!I4,paßheim,2,),\"\"))))))","v":""},false,null,null,null,3,{"$f":"'MANNSCHAFTEN+SPIELER'!A45","v":"Gastmannschaft 3"},null,null,null,{"$f":"IF(I18,VLOOKUP(übertrag!I18,Heimü,2,),\"\")","v":0},null,null,null,null,3]
[13,1,null,13,null,null,null,null,1,null,{"$f":"IF(übertrag!$H$2=1,VLOOKUP(übertrag!I5,einsü,2,),IF($H$2=2,VLOOKUP(übertrag!I5,zweiü,2,),IF($H$2=3,VLOOKUP(übertrag!I5,dreiü,2,),IF($H$2=4,VLOOKUP(übertrag!I5,vierü,2,),IF($H$2=5,VLOOKUP(übertrag!I5,fünfü,2,),IF($H$2=6,VLOOKUP(übertrag!I5,sechsü,2,),\"\"))))))","v":0},{"$f":"IF(übertrag!$H$2=7,VLOOKUP(übertrag!I5,siebenü,2,),IF($H$2=8,VLOOKUP(übertrag!I5,achtü,2,),IF($H$2=9,VLOOKUP(übertrag!I5,neunü,2,),IF($H$2=10,VLOOKUP(übertrag!I5,zehnü,2,),IF($H$2=11,VLOOKUP(übertrag!I5,elfü,2,),IF($H$2=12,VLOOKUP(übertrag!I5,Heimü,2,),\"\"))))))","v":""},{"$f":"IF(übertrag!$H$2=1,VLOOKUP(übertrag!I5,_jhg1,2,),IF($H$2=2,VLOOKUP(übertrag!I5,_jhg2,2,),IF($H$2=3,VLOOKUP(übertrag!I5,_jhg3,2,),IF($H$2=4,VLOOKUP(übertrag!I5,_jhg4,2,),IF($H$2=5,VLOOKUP(übertrag!I5,_jhg5,2,),IF($H$2=6,VLOOKUP(übertrag!I5,_jhg6,2,),\"\"))))))","v":0},{"$f":"IF(übertrag!$H$2=7,VLOOKUP(übertrag!I5,_jhg7,2,),IF($H$2=8,VLOOKUP(übertrag!I5,_jhg8,2,),IF($H$2=9,VLOOKUP(übertrag!I5,_jhg9,2,),IF($H$2=10,VLOOKUP(übertrag!I5,_jhg10,2,),IF($H$2=11,VLOOKUP(übertrag!I5,_jhg11,2,),IF($H$2=12,VLOOKUP(übertrag!I5,jhgheim,2,),\"\"))))))","v":""},{"$f":"IF(übertrag!$H$2=1,VLOOKUP(übertrag!I5,paß1,2,),IF($H$2=2,VLOOKUP(übertrag!I5,paß2,2,),IF($H$2=3,VLOOKUP(übertrag!I5,paß3,2,),IF($H$2=4,VLOOKUP(übertrag!I5,paß4,2,),IF($H$2=5,VLOOKUP(übertrag!I5,paß5,2,),IF($H$2=6,VLOOKUP(übertrag!I5,paß6,2,),\"\"))))))","v":0},{"$f":"IF(übertrag!$H$2=7,VLOOKUP(übertrag!I5,paß7,2,),IF($H$2=8,VLOOKUP(übertrag!I5,paß8,2,),IF($H$2=9,VLOOKUP(übertrag!I5,paß9,2,),IF($H$2=10,VLOOKUP(übertrag!I5,paß10,2,),IF($H$2=11,VLOOKUP(übertrag!I5,paß11,2,),IF($H$2=12,VLOOKUP(übertrag!I5,paßheim,2,),\"\"))))))","v":""},false,null,null,null,4,{"$f":"'MANNSCHAFTEN+SPIELER'!A66","v":"Gastmannschaft 4"},null,null,null,{"$f":"IF(I19,VLOOKUP(übertrag!I19,Heimü,2,),\"\")","v":0},null,null,null,null,4]
[13,9,9,13,null,null,null,null,1,null,{"$f":"IF(übertrag!$H$2=1,VLOOKUP(übertrag!I6,einsü,2,),IF($H$2=2,VLOOKUP(übertrag!I6,zweiü,2,),IF($H$2=3,VLOOKUP(übertrag!I6,dreiü,2,),IF($H$2=4,VLOOKUP(übertrag!I6,vierü,2,),IF($H$2=5,VLOOKUP(übertrag!I6,fünfü,2,),IF($H$2=6,VLOOKUP(übertrag!I6,sechsü,2,),\"\"))))))","v":0},{"$f":"IF(übertrag!$H$2=7,VLOOKUP(übertrag!I6,siebenü,2,),IF($H$2=8,VLOOKUP(übertrag!I6,achtü,2,),IF($H$2=9,VLOOKUP(übertrag!I6,neunü,2,),IF($H$2=10,VLOOKUP(übertrag!I6,zehnü,2,),IF($H$2=11,VLOOKUP(übertrag!I6,elfü,2,),IF($H$2=12,VLOOKUP(übertrag!I6,Heimü,2,),\"\"))))))","v":""},{"$f":"IF(übertrag!$H$2=1,VLOOKUP(übertrag!I6,_jhg1,2,),IF($H$2=2,VLOOKUP(übertrag!I6,_jhg2,2,),IF($H$2=3,VLOOKUP(übertrag!I6,_jhg3,2,),IF($H$2=4,VLOOKUP(übertrag!I6,_jhg4,2,),IF($H$2=5,VLOOKUP(übertrag!I6,_jhg5,2,),IF($H$2=6,VLOOKUP(übertrag!I6,_jhg6,2,),\"\"))))))","v":0},{"$f":"IF(übertrag!$H$2=7,VLOOKUP(übertrag!I6,_jhg7,2,),IF($H$2=8,VLOOKUP(übertrag!I6,_jhg8,2,),IF($H$2=9,VLOOKUP(übertrag!I6,_jhg9,2,),IF($H$2=10,VLOOKUP(übertrag!I6,_jhg10,2,),IF($H$2=11,VLOOKUP(übertrag!I6,_jhg11,2,),IF($H$2=12,VLOOKUP(übertrag!I6,jhgheim,2,),\"\"))))))","v":""},{"$f":"IF(übertrag!$H$2=1,VLOOKUP(übertrag!I6,paß1,2,),IF($H$2=2,VLOOKUP(übertrag!I6,paß2,2,),IF($H$2=3,VLOOKUP(übertrag!I6,paß3,2,),IF($H$2=4,VLOOKUP(übertrag!I6,paß4,2,),IF($H$2=5,VLOOKUP(übertrag!I6,paß5,2,),IF($H$2=6,VLOOKUP(übertrag!I6,paß6,2,),\"\"))))))","v":0},{"$f":"IF(übertrag!$H$2=7,VLOOKUP(übertrag!I6,paß7,2,),IF($H$2=8,VLOOKUP(übertrag!I6,paß8,2,),IF($H$2=9,VLOOKUP(übertrag!I6,paß9,2,),IF($H$2=10,VLOOKUP(übertrag!I6,paß10,2,),IF($H$2=11,VLOOKUP(übertrag!I6,paß11,2,),IF($H$2=12,VLOOKUP(übertrag!I6,paßheim,2,),\"\"))))))","v":""},false,null,null,null,5,{"$f":"'MANNSCHAFTEN+SPIELER'!A87","v":"Gastmannschaft 5"},null,null,null,{"$f":"IF(I20,VLOOKUP(übertrag!I20,Heimü,2,),\"\")","v":0},null,null,null,null,5]
[13,1,null,13,null,null,null,null,1,null,{"$f":"IF(übertrag!$H$2=1,VLOOKUP(übertrag!I7,einsü,2,),IF($H$2=2,VLOOKUP(übertrag!I7,zweiü,2,),IF($H$2=3,VLOOKUP(übertrag!I7,dreiü,2,),IF($H$2=4,VLOOKUP(übertrag!I7,vierü,2,),IF($H$2=5,VLOOKUP(übertrag!I7,fünfü,2,),IF($H$2=6,VLOOKUP(übertrag!I7,sechsü,2,),\"\"))))))","v":0},{"$f":"IF(übertrag!$H$2=7,VLOOKUP(übertrag!I7,siebenü,2,),IF($H$2=8,VLOOKUP(übertrag!I7,achtü,2,),IF($H$2=9,VLOOKUP(übertrag!I7,neunü,2,),IF($H$2=10,VLOOKUP(übertrag!I7,zehnü,2,),IF($H$2=11,VLOOKUP(übertrag!I7,elfü,2,),IF($H$2=12,VLOOKUP(übertrag!I7,Heimü,2,),\"\"))))))","v":""},{"$f":"IF(übertrag!$H$2=1,VLOOKUP(übertrag!I7,_jhg1,2,),IF($H$2=2,VLOOKUP(übertrag!I7,_jhg2,2,),IF($H$2=3,VLOOKUP(übertrag!I7,_jhg3,2,),IF($H$2=4,VLOOKUP(übertrag!I7,_jhg4,2,),IF($H$2=5,VLOOKUP(übertrag!I7,_jhg5,2,),IF($H$2=6,VLOOKUP(übertrag!I7,_jhg6,2,),\"\"))))))","v":0},{"$f":"IF(übertrag!$H$2=7,VLOOKUP(übertrag!I7,_jhg7,2,),IF($H$2=8,VLOOKUP(übertrag!I7,_jhg8,2,),IF($H$2=9,VLOOKUP(übertrag!I7,_jhg9,2,),IF($H$2=10,VLOOKUP(übertrag!I7,_jhg10,2,),IF($H$2=11,VLOOKUP(übertrag!I7,_jhg11,2,),IF($H$2=12,VLOOKUP(übertrag!I7,jhgheim,2,),\"\"))))))","v":""},{"$f":"IF(übertrag!$H$2=1,VLOOKUP(übertrag!I7,paß1,2,),IF($H$2=2,VLOOKUP(übertrag!I7,paß2,2,),IF($H$2=3,VLOOKUP(übertrag!I7,paß3,2,),IF($H$2=4,VLOOKUP(übertrag!I7,paß4,2,),IF($H$2=5,VLOOKUP(übertrag!I7,paß5,2,),IF($H$2=6,VLOOKUP(übertrag!I7,paß6,2,),\"\"))))))","v":0},{"$f":"IF(übertrag!$H$2=7,VLOOKUP(übertrag!I7,paß7,2,),IF($H$2=8,VLOOKUP(übertrag!I7,paß8,2,),IF($H$2=9,VLOOKUP(übertrag!I7,paß9,2,),IF($H$2=10,VLOOKUP(übertrag!I7,paß10,2,),IF($H$2=11,VLOOKUP(übertrag!I7,paß11,2,),IF($H$2=12,VLOOKUP(übertrag!I7,paßheim,2,),\"\"))))))","v":""},false,null,null,null,6,{"$f":"'MANNSCHAFTEN+SPIELER'!A108","v":"Gastmannschaft 6"},null,null,null,{"$f":"IF(I21,VLOOKUP(übertrag!I21,Heimü,2,),\"\")","v":0},null,null,null,null,6]
[13,9,9,13,null,null,null,null,1,null,{"$f":"IF(übertrag!$H$2=1,VLOOKUP(übertrag!I8,einsü,2,),IF($H$2=2,VLOOKUP(übertrag!I8,zweiü,2,),IF($H$2=3,VLOOKUP(übertrag!I8,dreiü,2,),IF($H$2=4,VLOOKUP(übertrag!I8,vierü,2,),IF($H$2=5,VLOOKUP(übertrag!I8,fünfü,2,),IF($H$2=6,VLOOKUP(übertrag!I8,sechsü,2,),\"\"))))))","v":0},{"$f":"IF(übertrag!$H$2=7,VLOOKUP(übertrag!I8,siebenü,2,),IF($H$2=8,VLOOKUP(übertrag!I8,achtü,2,),IF($H$2=9,VLOOKUP(übertrag!I8,neunü,2,),IF($H$2=10,VLOOKUP(übertrag!I8,zehnü,2,),IF($H$2=11,VLOOKUP(übertrag!I8,elfü,2,),IF($H$2=12,VLOOKUP(übertrag!I8,Heimü,2,),\"\"))))))","v":""},{"$f":"IF(übertrag!$H$2=1,VLOOKUP(übertrag!I8,_jhg1,2,),IF($H$2=2,VLOOKUP(übertrag!I8,_jhg2,2,),IF($H$2=3,VLOOKUP(übertrag!I8,_jhg3,2,),IF($H$2=4,VLOOKUP(übertrag!I8,_jhg4,2,),IF($H$2=5,VLOOKUP(übertrag!I8,_jhg5,2,),IF($H$2=6,VLOOKUP(übertrag!I8,_jhg6,2,),\"\"))))))","v":0},{"$f":"IF(übertrag!$H$2=7,VLOOKUP(übertrag!I8,_jhg7,2,),IF($H$2=8,VLOOKUP(übertrag!I8,_jhg8,2,),IF($H$2=9,VLOOKUP(übertrag!I8,_jhg9,2,),IF($H$2=10,VLOOKUP(übertrag!I8,_jhg10,2,),IF($H$2=11,VLOOKUP(übertrag!I8,_jhg11,2,),IF($H$2=12,VLOOKUP(übertrag!I8,jhgheim,2,),\"\"))))))","v":""},{"$f":"IF(übertrag!$H$2=1,VLOOKUP(übertrag!I8,paß1,2,),IF($H$2=2,VLOOKUP(übertrag!I8,paß2,2,),IF($H$2=3,VLOOKUP(übertrag!I8,paß3,2,),IF($H$2=4,VLOOKUP(übertrag!I8,paß4,2,),IF($H$2=5,VLOOKUP(übertrag!I8,paß5,2,),IF($H$2=6,VLOOKUP(übertrag!I8,paß6,2,),\"\"))))))","v":0},{"$f":"IF(übertrag!$H$2=7,VLOOKUP(übertrag!I8,paß7,2,),IF($H$2=8,VLOOKUP(übertrag!I8,paß8,2,),IF($H$2=9,VLOOKUP(übertrag!I8,paß9,2,),IF($H$2=10,VLOOKUP(übertrag!I8,paß10,2,),IF($H$2=11,VLOOKUP(übertrag!I8,paß11,2,),IF($H$2=12,VLOOKUP(übertrag!I8,paßheim,2,),\"\"))))))","v":""},false,null,null,null,7,{"$f":"'MANNSCHAFTEN+SPIELER'!A129","v":"Gastmannschaft 7"},null,null,null,{"$f":"IF(I22,VLOOKUP(übertrag!I22,Heimü,2,),\"\")","v":0},null,null,null,null,7]
[null,null,null,null,null,null,null,null,1,null,{"$f":"IF(übertrag!$H$2=1,VLOOKUP(übertrag!I9,einsü,2,),IF($H$2=2,VLOOKUP(übertrag!I9,zweiü,2,),IF($H$2=3,VLOOKUP(übertrag!I9,dreiü,2,),IF($H$2=4,VLOOKUP(übertrag!I9,vierü,2,),IF($H$2=5,VLOOKUP(übertrag!I9,fünfü,2,),IF($H$2=6,VLOOKUP(übertrag!I9,sechsü,2,),\"\"))))))","v":0},{"$f":"IF(übertrag!$H$2=7,VLOOKUP(übertrag!I9,siebenü,2,),IF($H$2=8,VLOOKUP(übertrag!I9,achtü,2,),IF($H$2=9,VLOOKUP(übertrag!I9,neunü,2,),IF($H$2=10,VLOOKUP(übertrag!I9,zehnü,2,),IF($H$2=11,VLOOKUP(übertrag!I9,elfü,2,),IF($H$2=12,VLOOKUP(übertrag!I9,Heimü,2,),\"\"))))))","v":""},{"$f":"IF(übertrag!$H$2=1,VLOOKUP(übertrag!I9,_jhg1,2,),IF($H$2=2,VLOOKUP(übertrag!I9,_jhg2,2,),IF($H$2=3,VLOOKUP(übertrag!I9,_jhg3,2,),IF($H$2=4,VLOOKUP(übertrag!I9,_jhg4,2,),IF($H$2=5,VLOOKUP(übertrag!I9,_jhg5,2,),IF($H$2=6,VLOOKUP(übertrag!I9,_jhg6,2,),\"\"))))))","v":0},{"$f":"IF(übertrag!$H$2=7,VLOOKUP(übertrag!I9,_jhg7,2,),IF($H$2=8,VLOOKUP(übertrag!I9,_jhg8,2,),IF($H$2=9,VLOOKUP(übertrag!I9,_jhg9,2,),IF($H$2=10,VLOOKUP(übertrag!I9,_jhg10,2,),IF($H$2=11,VLOOKUP(übertrag!I9,_jhg11,2,),IF($H$2=12,VLOOKUP(übertrag!I9,jhgheim,2,),\"\"))))))","v":""},{"$f":"IF(übertrag!$H$2=1,VLOOKUP(übertrag!I9,paß1,2,),IF($H$2=2,VLOOKUP(übertrag!I9,paß2,2,),IF($H$2=3,VLOOKUP(übertrag!I9,paß3,2,),IF($H$2=4,VLOOKUP(übertrag!I9,paß4,2,),IF($H$2=5,VLOOKUP(übertrag!I9,paß5,2,),IF($H$2=6,VLOOKUP(übertrag!I9,paß6,2,),\"\"))))))","v":0},{"$f":"IF(übertrag!$H$2=7,VLOOKUP(übertrag!I9,paß7,2,),IF($H$2=8,VLOOKUP(übertrag!I9,paß8,2,),IF($H$2=9,VLOOKUP(übertrag!I9,paß9,2,),IF($H$2=10,VLOOKUP(übertrag!I9,paß10,2,),IF($H$2=11,VLOOKUP(übertrag!I9,paß11,2,),IF($H$2=12,VLOOKUP(übertrag!I9,paßheim,2,),\"\"))))))","v":""},false,null,null,null,8,{"$f":"'MANNSCHAFTEN+SPIELER'!A150","v":"Gastmannschaft 8"},null,null,null,{"$f":"IF(I23,VLOOKUP(übertrag!I23,Heimü,2,),\"\")","v":0},null,null,null,null,8]
[null,9,9,null,null,null,null,null,1,null,{"$f":"IF(übertrag!$H$2=1,VLOOKUP(übertrag!I10,einsü,2,),IF($H$2=2,VLOOKUP(übertrag!I10,zweiü,2,),IF($H$2=3,VLOOKUP(übertrag!I10,dreiü,2,),IF($H$2=4,VLOOKUP(übertrag!I10,vierü,2,),IF($H$2=5,VLOOKUP(übertrag!I10,fünfü,2,),IF($H$2=6,VLOOKUP(übertrag!I10,sechsü,2,),\"\"))))))","v":0},{"$f":"IF(übertrag!$H$2=7,VLOOKUP(übertrag!I10,siebenü,2,),IF($H$2=8,VLOOKUP(übertrag!I10,achtü,2,),IF($H$2=9,VLOOKUP(übertrag!I10,neunü,2,),IF($H$2=10,VLOOKUP(übertrag!I10,zehnü,2,),IF($H$2=11,VLOOKUP(übertrag!I10,elfü,2,),IF($H$2=12,VLOOKUP(übertrag!I10,Heimü,2,),\"\"))))))","v":""},{"$f":"IF(übertrag!$H$2=1,VLOOKUP(übertrag!I10,_jhg1,2,),IF($H$2=2,VLOOKUP(übertrag!I10,_jhg2,2,),IF($H$2=3,VLOOKUP(übertrag!I10,_jhg3,2,),IF($H$2=4,VLOOKUP(übertrag!I10,_jhg4,2,),IF($H$2=5,VLOOKUP(übertrag!I10,_jhg5,2,),IF($H$2=6,VLOOKUP(übertrag!I10,_jhg6,2,),\"\"))))))","v":0},{"$f":"IF(übertrag!$H$2=7,VLOOKUP(übertrag!I10,_jhg7,2,),IF($H$2=8,VLOOKUP(übertrag!I10,_jhg8,2,),IF($H$2=9,VLOOKUP(übertrag!I10,_jhg9,2,),IF($H$2=10,VLOOKUP(übertrag!I10,_jhg10,2,),IF($H$2=11,VLOOKUP(übertrag!I10,_jhg11,2,),IF($H$2=12,VLOOKUP(übertrag!I10,jhgheim,2,),\"\"))))))","v":""},{"$f":"IF(übertrag!$H$2=1,VLOOKUP(übertrag!I10,paß1,2,),IF($H$2=2,VLOOKUP(übertrag!I10,paß2,2,),IF($H$2=3,VLOOKUP(übertrag!I10,paß3,2,),IF($H$2=4,VLOOKUP(übertrag!I10,paß4,2,),IF($H$2=5,VLOOKUP(übertrag!I10,paß5,2,),IF($H$2=6,VLOOKUP(übertrag!I10,paß6,2,),\"\"))))))","v":0},{"$f":"IF(übertrag!$H$2=7,VLOOKUP(übertrag!I10,paß7,2,),IF($H$2=8,VLOOKUP(übertrag!I10,paß8,2,),IF($H$2=9,VLOOKUP(übertrag!I10,paß9,2,),IF($H$2=10,VLOOKUP(übertrag!I10,paß10,2,),IF($H$2=11,VLOOKUP(übertrag!I10,paß11,2,),IF($H$2=12,VLOOKUP(übertrag!I10,paßheim,2,),\"\"))))))","v":""},false,null,null,null,9,{"$f":"'MANNSCHAFTEN+SPIELER'!A171","v":"Gastmannschaft 9"},null,null,null,{"$f":"IF(I24,VLOOKUP(übertrag!I24,Heimü,2,),\"\")","v":0},null,null,null,null,9]
[null,null,null,null,null,null,null,null,1,null,{"$f":"IF(übertrag!$H$2=1,VLOOKUP(übertrag!I11,einsü,2,),IF($H$2=2,VLOOKUP(übertrag!I11,zweiü,2,),IF($H$2=3,VLOOKUP(übertrag!I11,dreiü,2,),IF($H$2=4,VLOOKUP(übertrag!I11,vierü,2,),IF($H$2=5,VLOOKUP(übertrag!I11,fünfü,2,),IF($H$2=6,VLOOKUP(übertrag!I11,sechsü,2,),\"\"))))))","v":0},{"$f":"IF(übertrag!$H$2=7,VLOOKUP(übertrag!I11,siebenü,2,),IF($H$2=8,VLOOKUP(übertrag!I11,achtü,2,),IF($H$2=9,VLOOKUP(übertrag!I11,neunü,2,),IF($H$2=10,VLOOKUP(übertrag!I11,zehnü,2,),IF($H$2=11,VLOOKUP(übertrag!I11,elfü,2,),IF($H$2=12,VLOOKUP(übertrag!I11,Heimü,2,),\"\"))))))","v":""},{"$f":"IF(übertrag!$H$2=1,VLOOKUP(übertrag!I11,_jhg1,2,),IF($H$2=2,VLOOKUP(übertrag!I11,_jhg2,2,),IF($H$2=3,VLOOKUP(übertrag!I11,_jhg3,2,),IF($H$2=4,VLOOKUP(übertrag!I11,_jhg4,2,),IF($H$2=5,VLOOKUP(übertrag!I11,_jhg5,2,),IF($H$2=6,VLOOKUP(übertrag!I11,_jhg6,2,),\"\"))))))","v":0},{"$f":"IF(übertrag!$H$2=7,VLOOKUP(übertrag!I11,_jhg7,2,),IF($H$2=8,VLOOKUP(übertrag!I11,_jhg8,2,),IF($H$2=9,VLOOKUP(übertrag!I11,_jhg9,2,),IF($H$2=10,VLOOKUP(übertrag!I11,_jhg10,2,),IF($H$2=11,VLOOKUP(übertrag!I11,_jhg11,2,),IF($H$2=12,VLOOKUP(übertrag!I11,jhgheim,2,),\"\"))))))","v":""},{"$f":"IF(übertrag!$H$2=1,VLOOKUP(übertrag!I11,paß1,2,),IF($H$2=2,VLOOKUP(übertrag!I11,paß2,2,),IF($H$2=3,VLOOKUP(übertrag!I11,paß3,2,),IF($H$2=4,VLOOKUP(übertrag!I11,paß4,2,),IF($H$2=5,VLOOKUP(übertrag!I11,paß5,2,),IF($H$2=6,VLOOKUP(übertrag!I11,paß6,2,),\"\"))))))","v":0},{"$f":"IF(übertrag!$H$2=7,VLOOKUP(übertrag!I11,paß7,2,),IF($H$2=8,VLOOKUP(übertrag!I11,paß8,2,),IF($H$2=9,VLOOKUP(übertrag!I11,paß9,2,),IF($H$2=10,VLOOKUP(übertrag!I11,paß10,2,),IF($H$2=11,VLOOKUP(übertrag!I11,paß11,2,),IF($H$2=12,VLOOKUP(übertrag!I11,paßheim,2,),\"\"))))))","v":""},false,null,null,null,10,{"$f":"'MANNSCHAFTEN+SPIELER'!A192","v":"Gastmannschaft 10"},null,null,null,{"$f":"IF(I25,VLOOKUP(übertrag!I25,Heimü,2,),\"\")","v":0},null,null,null,null,10]
[null,null,null,null,null,null,null,null,1,null,{"$f":"IF(übertrag!$H$2=1,VLOOKUP(übertrag!I12,einsü,2,),IF($H$2=2,VLOOKUP(übertrag!I12,zweiü,2,),IF($H$2=3,VLOOKUP(übertrag!I12,dreiü,2,),IF($H$2=4,VLOOKUP(übertrag!I12,vierü,2,),IF($H$2=5,VLOOKUP(übertrag!I12,fünfü,2,),IF($H$2=6,VLOOKUP(übertrag!I12,sechsü,2,),\"\"))))))","v":0},{"$f":"IF(übertrag!$H$2=7,VLOOKUP(übertrag!I12,siebenü,2,),IF($H$2=8,VLOOKUP(übertrag!I12,achtü,2,),IF($H$2=9,VLOOKUP(übertrag!I12,neunü,2,),IF($H$2=10,VLOOKUP(übertrag!I12,zehnü,2,),IF($H$2=11,VLOOKUP(übertrag!I12,elfü,2,),IF($H$2=12,VLOOKUP(übertrag!I12,Heimü,2,),\"\"))))))","v":""},{"$f":"IF(übertrag!$H$2=1,VLOOKUP(übertrag!I12,_jhg1,2,),IF($H$2=2,VLOOKUP(übertrag!I12,_jhg2,2,),IF($H$2=3,VLOOKUP(übertrag!I12,_jhg3,2,),IF($H$2=4,VLOOKUP(übertrag!I12,_jhg4,2,),IF($H$2=5,VLOOKUP(übertrag!I12,_jhg5,2,),IF($H$2=6,VLOOKUP(übertrag!I12,_jhg6,2,),\"\"))))))","v":0},{"$f":"IF(übertrag!$H$2=7,VLOOKUP(übertrag!I12,_jhg7,2,),IF($H$2=8,VLOOKUP(übertrag!I12,_jhg8,2,),IF($H$2=9,VLOOKUP(übertrag!I12,_jhg9,2,),IF($H$2=10,VLOOKUP(übertrag!I12,_jhg10,2,),IF($H$2=11,VLOOKUP(übertrag!I12,_jhg11,2,),IF($H$2=12,VLOOKUP(übertrag!I12,jhgheim,2,),\"\"))))))","v":""},{"$f":"IF(übertrag!$H$2=1,VLOOKUP(übertrag!I12,paß1,2,),IF($H$2=2,VLOOKUP(übertrag!I12,paß2,2,),IF($H$2=3,VLOOKUP(übertrag!I12,paß3,2,),IF($H$2=4,VLOOKUP(übertrag!I12,paß4,2,),IF($H$2=5,VLOOKUP(übertrag!I12,paß5,2,),IF($H$2=6,VLOOKUP(übertrag!I12,paß6,2,),\"\"))))))","v":0},{"$f":"IF(übertrag!$H$2=7,VLOOKUP(übertrag!I12,paß7,2,),IF($H$2=8,VLOOKUP(übertrag!I12,paß8,2,),IF($H$2=9,VLOOKUP(übertrag!I12,paß9,2,),IF($H$2=10,VLOOKUP(übertrag!I12,paß10,2,),IF($H$2=11,VLOOKUP(übertrag!I12,paß11,2,),IF($H$2=12,VLOOKUP(übertrag!I12,paßheim,2,),\"\"))))))","v":""},null,null,null,null,11,{"$f":"'MANNSCHAFTEN+SPIELER'!A213","v":"Gastmannschaft 11"},null,null,null,{"$f":"IF(I26,VLOOKUP(übertrag!I26,Heimü,2,),\"\")","v":0},null,null,null,null,11]
[null,null,null,null,null,null,null,null,1,null,{"$f":"IF(übertrag!$H$2=1,VLOOKUP(übertrag!I13,einsü,2,),IF($H$2=2,VLOOKUP(übertrag!I13,zweiü,2,),IF($H$2=3,VLOOKUP(übertrag!I13,dreiü,2,),IF($H$2=4,VLOOKUP(übertrag!I13,vierü,2,),IF($H$2=5,VLOOKUP(übertrag!I13,fünfü,2,),IF($H$2=6,VLOOKUP(übertrag!I13,sechsü,2,),\"\"))))))","v":0},{"$f":"IF(übertrag!$H$2=7,VLOOKUP(übertrag!I13,siebenü,2,),IF($H$2=8,VLOOKUP(übertrag!I13,achtü,2,),IF($H$2=9,VLOOKUP(übertrag!I13,neunü,2,),IF($H$2=10,VLOOKUP(übertrag!I13,zehnü,2,),IF($H$2=11,VLOOKUP(übertrag!I13,elfü,2,),IF($H$2=12,VLOOKUP(übertrag!I13,Heimü,2,),\"\"))))))","v":""},{"$f":"IF(übertrag!$H$2=1,VLOOKUP(übertrag!I13,_jhg1,2,),IF($H$2=2,VLOOKUP(übertrag!I13,_jhg2,2,),IF($H$2=3,VLOOKUP(übertrag!I13,_jhg3,2,),IF($H$2=4,VLOOKUP(übertrag!I13,_jhg4,2,),IF($H$2=5,VLOOKUP(übertrag!I13,_jhg5,2,),IF($H$2=6,VLOOKUP(übertrag!I13,_jhg6,2,),\"\"))))))","v":0},{"$f":"IF(übertrag!$H$2=7,VLOOKUP(übertrag!I13,_jhg7,2,),IF($H$2=8,VLOOKUP(übertrag!I13,_jhg8,2,),IF($H$2=9,VLOOKUP(übertrag!I13,_jhg9,2,),IF($H$2=10,VLOOKUP(übertrag!I13,_jhg10,2,),IF($H$2=11,VLOOKUP(übertrag!I13,_jhg11,2,),IF($H$2=12,VLOOKUP(übertrag!I13,jhgheim,2,),\"\"))))))","v":""},{"$f":"IF(übertrag!$H$2=1,VLOOKUP(übertrag!I13,paß1,2,),IF($H$2=2,VLOOKUP(übertrag!I13,paß2,2,),IF($H$2=3,VLOOKUP(übertrag!I13,paß3,2,),IF($H$2=4,VLOOKUP(übertrag!I13,paß4,2,),IF($H$2=5,VLOOKUP(übertrag!I13,paß5,2,),IF($H$2=6,VLOOKUP(übertrag!I13,paß6,2,),\"\"))))))","v":0},{"$f":"IF(übertrag!$H$2=7,VLOOKUP(übertrag!I13,paß7,2,),IF($H$2=8,VLOOKUP(übertrag!I13,paß8,2,),IF($H$2=9,VLOOKUP(übertrag!I13,paß9,2,),IF($H$2=10,VLOOKUP(übertrag!I13,paß10,2,),IF($H$2=11,VLOOKUP(übertrag!I13,paß11,2,),IF($H$2=12,VLOOKUP(übertrag!I13,paßheim,2,),\"\"))))))","v":""},null,null,null,null,12,{"$f":"'MANNSCHAFTEN+SPIELER'!O3","v":"Heimmannschaft"},null,null,null,{"$f":"IF(I27,VLOOKUP(übertrag!I27,Heimü,2,),\"\")","v":0},null,null,null,null,12]
[null,null,null,null,null,null,null,null,1,null,{"$f":"IF(übertrag!$H$2=1,VLOOKUP(übertrag!I14,einsü,2,),IF($H$2=2,VLOOKUP(übertrag!I14,zweiü,2,),IF($H$2=3,VLOOKUP(übertrag!I14,dreiü,2,),IF($H$2=4,VLOOKUP(übertrag!I14,vierü,2,),IF($H$2=5,VLOOKUP(übertrag!I14,fünfü,2,),IF($H$2=6,VLOOKUP(übertrag!I14,sechsü,2,),\"\"))))))","v":0},{"$f":"IF(übertrag!$H$2=7,VLOOKUP(übertrag!I14,siebenü,2,),IF($H$2=8,VLOOKUP(übertrag!I14,achtü,2,),IF($H$2=9,VLOOKUP(übertrag!I14,neunü,2,),IF($H$2=10,VLOOKUP(übertrag!I14,zehnü,2,),IF($H$2=11,VLOOKUP(übertrag!I14,elfü,2,),IF($H$2=12,VLOOKUP(übertrag!I14,Heimü,2,),\"\"))))))","v":""},null,null,null,null,null,null,null,null,13,null,null,null,null,{"$f":"IF(I28,VLOOKUP(übertrag!I28,Heimü,2,),\"\")","v":0},null,null,null,null,13]
[null,null,null,null,null,null,null,null,null,null,null,null,null,null,null,null,null,null,null,null,14,null,null,null,null,{"$f":"IF(I29,VLOOKUP(übertrag!I29,Heimü,2,),\"\")","v":0},null,null,null,null,14]
[null,null,null,null,null,null,null,null,1,null,{"$f":"IF(I16,VLOOKUP(übertrag!I16,paßheim,2,),\"\")","v":0},null,{"$f":"IF(I16,VLOOKUP(übertrag!I16,jhgheim,2,),\"\")","v":"00:00:00"},null,{"$f":"IF(übertrag!I16,VLOOKUP(übertrag!I16,paßheim,2,),\"\")","v":0},null,true,null,null,null,null,null,null,null,null,{"$f":"IF(I25,VLOOKUP(übertrag!I25,Heimü,2,),\"\")","v":0},null,null,null,null,15]
[null,9,9,null,null,null,null,null,1,null,{"$f":"IF(I17,VLOOKUP(übertrag!I17,paßheim,2,),\"\")","v":0},null,{"$f":"IF(I17,VLOOKUP(übertrag!I17,jhgheim,2,),\"\")","v":"00:00:00"},null,{"$f":"IF(übertrag!I17,VLOOKUP(übertrag!I17,paßheim,2,),\"\")","v":0},null,true,null,null,null,null,null,null,null,null,{"$f":"IF(I26,VLOOKUP(übertrag!I26,Heimü,2,),\"\")","v":0},null,null,null,null,16]
[null,1,null,null,null,null,null,null,1,null,{"$f":"IF(I18,VLOOKUP(übertrag!I18,paßheim,2,),\"\")","v":0},null,{"$f":"IF(I18,VLOOKUP(übertrag!I18,jhgheim,2,),\"\")","v":"00:00:00"},null,{"$f":"IF(übertrag!I18,VLOOKUP(übertrag!I18,paßheim,2,),\"\")","v":0},null,true,null,null,null,null,null,null,null,null,{"$f":"IF(I27,VLOOKUP(übertrag!I27,Heimü,2,),\"\")","v":0},null,null,null,null,17]
[null,9,9,null,null,null,null,null,1,null,{"$f":"IF(I19,VLOOKUP(übertrag!I19,paßheim,2,),\"\")","v":0},null,{"$f":"IF(I19,VLOOKUP(übertrag!I19,jhgheim,2,),\"\")","v":"00:00:00"},null,{"$f":"IF(übertrag!I19,VLOOKUP(übertrag!I19,paßheim,2,),\"\")","v":0},null,true,null,null,null,null,null,null,null,null,null,null,null,null,null,18]
[null,null,null,null,null,null,null,null,1,null,{"$f":"IF(I20,VLOOKUP(übertrag!I20,paßheim,2,),\"\")","v":0},null,{"$f":"IF(I20,VLOOKUP(übertrag!I20,jhgheim,2,),\"\")","v":"00:00:00"},null,{"$f":"IF(übertrag!I20,VLOOKUP(übertrag!I20,paßheim,2,),\"\")","v":0},null,false,null,null,null,null,null,null,null,null,{"$f":"IF(I29,VLOOKUP(übertrag!I29,Heimü,2,),\"\")","v":0},null,null,null,null,19]
[null,null,null,null,null,null,null,null,1,null,{"$f":"IF(I21,VLOOKUP(übertrag!I21,paßheim,2,),\"\")","v":0},null,{"$f":"IF(I21,VLOOKUP(übertrag!I21,jhgheim,2,),\"\")","v":"00:00:00"},null,{"$f":"IF(übertrag!I21,VLOOKUP(übertrag!I21,paßheim,2,),\"\")","v":0},null,true,null,null,null,null,null,null,null,null,{"$f":"IF(I30,VLOOKUP(übertrag!I30,Heimü,2,),\"\")","v":0},null,null,null,null,20]
[null,null,null,null,null,null,null,null,1,null,{"$f":"IF(I22,VLOOKUP(übertrag!I22,paßheim,2,),\"\")","v":0},null,{"$f":"IF(I22,VLOOKUP(übertrag!I22,jhgheim,2,),\"\")","v":"00:00:00"},null,{"$f":"IF(übertrag!I22,VLOOKUP(übertrag!I22,paßheim,2,),\"\")","v":0},null,true,null,null,null,null,null,null,null,null,null,null,null,null,null,21]
[null,null,null,null,null,null,null,null,1,null,{"$f":"IF(I23,VLOOKUP(übertrag!I23,paßheim,2,),\"\")","v":0},null,{"$f":"IF(I23,VLOOKUP(übertrag!I23,jhgheim,2,),\"\")","v":"00:00:00"},null,{"$f":"IF(übertrag!I23,VLOOKUP(übertrag!I23,paßheim,2,),\"\")","v":0},null,false,null,null,null,null,null,null,null,null,null,null,null,null,null,22]
[null,null,null,null,null,null,null,null,1,null,{"$f":"IF(I24,VLOOKUP(übertrag!I24,paßheim,2,),\"\")","v":0},null,{"$f":"IF(I24,VLOOKUP(übertrag!I24,jhgheim,2,),\"\")","v":"00:00:00"},null,{"$f":"IF(übertrag!I24,VLOOKUP(übertrag!I24,paßheim,2,),\"\")","v":0},null,false]
[null,null,null,null,null,null,null,null,1,null,{"$f":"IF(I25,VLOOKUP(übertrag!I25,paßheim,2,),\"\")","v":0},null,{"$f":"IF(I25,VLOOKUP(übertrag!I25,jhgheim,2,),\"\")","v":"00:00:00"},null,{"$f":"IF(übertrag!I25,VLOOKUP(übertrag!I25,paßheim,2,),\"\")","v":0},null,false,null,null,null,null,null,null,null,null,null,null,null,null,null,"1"]
[null,null,null,null,null,null,null,null,1,null,{"$f":"IF(I26,VLOOKUP(übertrag!I26,paßheim,2,),\"\")","v":0},null,{"$f":"IF(I26,VLOOKUP(übertrag!I26,jhgheim,2,),\"\")","v":"00:00:00"},null,{"$f":"IF(übertrag!I26,VLOOKUP(übertrag!I26,paßheim,2,),\"\")","v":0},null,false]
[null,null,null,null,null,null,null,null,1,null,{"$f":"IF(I27,VLOOKUP(übertrag!I27,paßheim,2,),\"\")","v":0},null,{"$f":"IF(I27,VLOOKUP(übertrag!I27,jhgheim,2,),\"\")","v":"00:00:00"},null,{"$f":"IF(übertrag!I27,VLOOKUP(übertrag!I27,paßheim,2,),\"\")","v":0},null,false]
[null,null,null,null,null,null,null,null,1,null,{"$f":"IF(I28,VLOOKUP(übertrag!I28,paßheim,2,),\"\")","v":0},null,{"$f":"IF(I28,VLOOKUP(übertrag!I28,jhgheim,2,),\"\")","v":"00:00:00"},null,{"$f":"IF(übertrag!I28,VLOOKUP(übertrag!I28,paßheim,2,),\"\")","v":0},null,false]
[null,null,null,null,null,null,null,null,1,null,null,null,{"$f":"IF(I29,VLOOKUP(übertrag!I29,jhgheim,2,),\"\")","v":"00:00:00"},null,{"$f":"IF(übertrag!I29,VLOOKUP(übertrag!I29,paßheim,2,),\"\")","v":0},null,false]
[null,null,null,null,null,null,null,null,1,null,null,null,{"$f":"IF(I30,VLOOKUP(übertrag!I30,jhgheim,2,),\"\")","v":"00:00:00"},null,{"$f":"IF(übertrag!I30,VLOOKUP(übertrag!I30,paßheim,2,),\"\")","v":0},null,false]
[null,null,null,null,null,null,null,null,null,null,null,null,{"$f":"IF(I31,VLOOKUP(übertrag!I31,jhgheim,2,),\"\")","v":""},null,{"$f":"IF(übertrag!I31,VLOOKUP(übertrag!I31,paßheim,2,),\"\")","v":""},null,false]
[null,null,null,null,null,null,null,null,null,null,null,null,{"$f":"IF(I32,VLOOKUP(übertrag!I32,jhgheim,2,),\"\")","v":""},null,{"$f":"IF(übertrag!I32,VLOOKUP(übertrag!I32,paßheim,2,),\"\")","v":""},null,false]
[null,null,null,null,null,null,null,null,1,null,{"$f":"IF(übertrag!$H$2=1,VLOOKUP(übertrag!I33,einsü,2,),IF($H$2=2,VLOOKUP(übertrag!I33,zweiü,2,),IF($H$2=3,VLOOKUP(übertrag!I33,dreiü,2,),IF($H$2=4,VLOOKUP(übertrag!I33,vierü,2,),IF($H$2=5,VLOOKUP(übertrag!I33,fünfü,2,),IF($H$2=6,VLOOKUP(übertrag!I33,sechsü,2,),\"\"))))))","v":0},{"$f":"IF(übertrag!$H$2=7,VLOOKUP(übertrag!I33,siebenü,2,),IF($H$2=8,VLOOKUP(übertrag!I33,achtü,2,),IF($H$2=9,VLOOKUP(übertrag!I33,neunü,2,),IF($H$2=10,VLOOKUP(übertrag!I33,zehnü,2,),IF($H$2=11,VLOOKUP(übertrag!I33,elfü,2,),IF($H$2=12,VLOOKUP(übertrag!I33,Heimü,2,),\"\"))))))","v":""},{"$f":"IF(I33,VLOOKUP(übertrag!I33,jhgheim,2,),\"\")","v":"00:00:00"},null,{"$f":"IF(übertrag!I33,VLOOKUP(übertrag!I33,paßheim,2,),\"\")","v":0},null,false]
[null,null,null,null,null,null,null,null,1,null,{"$f":"IF(übertrag!$H$2=1,VLOOKUP(übertrag!I34,einsü,2,),IF($H$2=2,VLOOKUP(übertrag!I34,zweiü,2,),IF($H$2=3,VLOOKUP(übertrag!I34,dreiü,2,),IF($H$2=4,VLOOKUP(übertrag!I34,vierü,2,),IF($H$2=5,VLOOKUP(übertrag!I34,fünfü,2,),IF($H$2=6,VLOOKUP(übertrag!I34,sechsü,2,),\"\"))))))","v":0},{"$f":"IF(übertrag!$H$2=7,VLOOKUP(übertrag!I34,siebenü,2,),IF($H$2=8,VLOOKUP(übertrag!I34,achtü,2,),IF($H$2=9,VLOOKUP(übertrag!I34,neunü,2,),IF($H$2=10,VLOOKUP(übertrag!I34,zehnü,2,),IF($H$2=11,VLOOKUP(übertrag!I34,elfü,2,),IF($H$2=12,VLOOKUP(übertrag!I34,Heimü,2,),\"\"))))))","v":""},null,null,null,null,false,"TRUE"]
[null,null,null,null,null,null,null,null,null,null,null,null,null,null,null,null,true]
[]
[]
[]
[]
[]
[]
[]
[]
[]
[]
[]
[]
[]
[]
[]
[]
[]
[]
[]
[]
[]
[]
[]
[]
[]
[]
[]
[]
[]
[]
[]
[]
[]
[]
[]
[]
[]
[]
[]
[]
[]
[]
[]
[]
[]
[]
[]
[]
[]
[]
[]
[]
[]
[]
[]
[]
[]
[]
[]
[]
[]
[]
[]
[]
[null,null,null,null,null,null,null,null,null,null,null,null,null,null,null,null,null,null,null,null,"Gastmannschaft 1"]
[]
[]
[]
[]
[]
[]
[]
[]
[]
[]
[]
[]
[]
[]
[]
[]
[null,null,null,null,null,null,"Bemerkungen zu:"]